{"text_format":"1","workbook":"xlsx","n_sheets":25,"sheets":["DATA","LIST","0","1","2","3","4","5","6","7","8","9","Безопасность","Навигация","Конструкция","Паруса рангойт такелаж","Управление","Узлы","Теория","Метео","Сигналы","Цифры","Правила","Право","Практика"],"not_rendered":{"charts":0,"images":32,"macros":1,"external_links":0,"defined_names":1,"comments":0,"pivot_tables":0},"unopened":[],"bounds":{"document_bytes":16777216,"sheet_cells":100000,"rows_first":2000,"rows_last":500,"rows_between":2000,"halvings":0,"cell_chars":16384,"cell_head_chars":4096},"cells_cut":0,"cells_raw":0,"read":"whole","date_system":"1900"}

{"sheet":"DATA","index":0,"n_rows":23,"n_cols":16,"rows_kept":23,"cut":false,"hidden":false,"merged":[]}
[]
[]
[]
[]
[]
[]
[]
[]
[]
[]
[]
[]
[]
[]
[]
[]
[6282,"Windsurfing License",null,"Лебедева Зинаида","Юрьевнв","Lebedeva Zinaida","22.01.2006  Москва. Мурановская ул..д 8. кв 183","Moscow","Россия  /  RUS","2018-08-18","Квалификационная комиссия  ФПС МО 11.08.2018","08.01.2003 г. Москва ул. Дубнинская ",null,null,"SURF CLUB NORD WEST","128/2018 КВ от 15.08.2018"]
[6283,"Windsurfing License",null,"Луппова Светлана","Сергеевна","Lyppova Svetlana","27.12.2002  Москва. ул. Академика Янгеля д.8. кв. 215       ","Moscow","Россия  /  RUS","2018-08-18","Квалификационная комиссия  ФПС МО 11.08.2018","08.01.2003 г. Москва ул. Дубнинская ",null,null,"SURF CLUB NORD WEST","128/2018 КВ от 15.08.2018"]
[6284,"Windsurfing License",null,"Мозолевский Антон","Романович","Mozolevskii Anton","22.12.2008  Москва. Перервинский б-р.. д.3. кв. 51     ","Moscow","Россия  /  RUS","2018-08-18","Квалификационная комиссия  ФПС МО 11.08.2018","08.01.2003 г. Москва ул. Дубнинская ",null,null,"SURF CLUB NORD WEST","128/2018 КВ от 15.08.2018"]
[6285,"Windsurfing License",null,"Очковский Максим","Алексеевич","Ochkovskii Maksim","21.02.2005  Москва. ул. Академика Янгеля д.8. кв. 215       ","Moscow","Россия  /  RUS","2018-08-18","Квалификационная комиссия  ФПС МО 11.08.2018","08.01.2003 г. Москва ул. Дубнинская ",null,null,"SURF CLUB NORD WEST","128/2018 КВ от 15.08.2018"]
[6286,"Windsurfing License",null,"Попов Захар","Олегович","Popov Zakhar","08.01.2003  Москва ул. Дубнинская д.61. кв. 127","Moscow","Россия  /  RUS","2018-08-18","Квалификационная комиссия  ФПС МО 11.08.2018","08.01.2003 г. Москва ул. Дубнинская ",null,null,"SURF CLUB NORD WEST","128/2018 КВ от 15.08.2018"]
[6287,"Windsurfing License",null,"Трошкина Вероника","Юрьевна","Troshkina Veronika","05.04.2002  Москва. ул. Маршала Катукова д.24. к.6. кв. 153","Moscow","Россия  /  RUS","2018-08-18","Квалификационная комиссия  ФПС МО 11.08.2018","08.01.2003 г. Москва ул. Дубнинская ",null,null,"SURF CLUB NORD WEST","128/2018 КВ от 15.08.2018"]
[6288,"Windsurfing License",null,"Щукина Анастасия","Петровна","Schykina Anastasiay","06.03.2003  Москва. ул. Маршала Катукова д.24. к.6. кв. 153 ","Moscow","Россия  /  RUS","2018-08-18","Квалификационная комиссия  ФПС МО 11.08.2018","08.01.2003 г. Москва ул. Дубнинская ",null,null,"SURF CLUB NORD WEST","128/2018 КВ от 15.08.2018"]

{"sheet":"LIST","index":1,"n_rows":36,"n_cols":9,"rows_kept":36,"cut":false,"hidden":false,"merged":[[0,7,0,8],[29,0,29,1],[31,5,31,8]]}
[null,{"$f":"\" ЭКЗАМЕНАЦИОННЫЙ ЛИСТ №  \"&VLOOKUP($A$7,DATA!$A$5:$S$88615,1,TRUE)&\"/\"&VLOOKUP($A$7,DATA!$A$5:$S$88615,3,TRUE)","v":" ЭКЗАМЕНАЦИОННЫЙ ЛИСТ №  6284/"},null,"                                           ЭКЗАМЕНАЦИОННАЯ ВЕДОМОСТЬ",null,null,null,{"$f":"VLOOKUP($A$7,DATA!$A$5:$X$88091,10,TRUE)","v":"2018-08-18"}]
[null,"     ",null,"                          Результаты квалификационных испытаний "]
[null,{"$f":"\" Имя    \"&VLOOKUP($A$7,DATA!$A$5:$X$88091,4,TRUE)","v":" Имя    Мозолевский Антон"},null,"                                     по теоретической подготовке ",null,null,"Билет №",{"$f":"RIGHT(A7)","v":"4"}]
["Место",null,null,null,"Наименование дисциплины ","часов","Оценка ","Дата ","фамилия "]
["для ",{"$f":"\" Имя    \"&VLOOKUP($A$7,DATA!$A$5:$X$88091,5,TRUE)","v":" Имя    Романович"},null,"№ ",null,null,null,null,"экзаменатора"]
["фото","    ",null,"  1.","Теория и устройство парусной яхты.",8,"хор",{"$f":"VLOOKUP($A$7,DATA!$A$5:$X$88091,10,TRUE)","v":"2018-08-18"}]
[6284,{"$f":"\" Name    \"&VLOOKUP($A$7,DATA!$A$5:$X$88091,6,TRUE)","v":" Name    Mozolevskii Anton"},null,"  2.","Судовождение.",2,"отл",{"$f":"VLOOKUP($A$7,DATA!$A$5:$X$88091,10,TRUE)","v":"2018-08-18"}]
[null,"                                 Фамилия, имя  на английском языке",null,null," Лоция и Навигация.",4,"отл",{"$f":"VLOOKUP($A$7,DATA!$A$5:$X$88091,10,TRUE)","v":"2018-08-18"}]
[null,null,null,"  3.","Управление парусной яхтой",8,"хор",{"$f":"VLOOKUP($A$7,DATA!$A$5:$X$88091,10,TRUE)","v":"2018-08-18"}]
[{"$f":"\"Год, дата рождения и место рождения   \"&VLOOKUP($A$7,DATA!$A$5:$X$88091,7,TRUE)&VLOOKUP($A$7,DATA!$A$5:$X$88091,8,TRUE)","v":"Год, дата рождения и место рождения   22.12.2008  Москва. Перервинский б-р.. д.3. кв. 51     Moscow"},null,null,"  4.","Эксплуатация яхты.",2,"отл",{"$f":"VLOOKUP($A$7,DATA!$A$5:$X$88091,10,TRUE)","v":"2018-08-18"}]
[{"$f":"\"Индекс, домашний адрес :    \"","v":"Индекс, домашний адрес :    "},null,null,null,"Такелажное дело",4,"отл",{"$f":"VLOOKUP($A$7,DATA!$A$5:$X$88091,10,TRUE)","v":"2018-08-18"}]
[{"$f":"VLOOKUP($A$7,DATA!$A$5:$X$88091,13,TRUE)","v":0},null,null,"  5.","Правила плавания.",2,"хор",{"$f":"VLOOKUP($A$7,DATA!$A$5:$X$88091,10,TRUE)","v":"2018-08-18"}]
[{"$f":"\"Тел:  \"&VLOOKUP($A$7,DATA!$A$5:$S$88615,19,TRUE)","v":"Тел:  "},{"$f":"\"эл.почта     \"&VLOOKUP($A$7,DATA!$A$5:$S$88615,18,TRUE)","v":"эл.почта     "},null,null," МППСС и  ППВВП",2,"отл",{"$f":"VLOOKUP($A$7,DATA!$A$5:$X$88091,10,TRUE)","v":"2018-08-18"}]
[{"$f":"\"Паспорт, серия,  №,  дата выдачи,  кем, и где выдан \"","v":"Паспорт, серия,  №,  дата выдачи,  кем, и где выдан "},null,null,"  6.","Гидрометеорология",3,"отл",{"$f":"VLOOKUP($A$7,DATA!$A$5:$X$88091,10,TRUE)","v":"2018-08-18"}]
[{"$f":"VLOOKUP($A$7,DATA!$A$5:$X$88091,14,TRUE)","v":0},null,null,"  7.","Сигнализация и связь",2,"хор",{"$f":"VLOOKUP($A$7,DATA!$A$5:$X$88091,10,TRUE)","v":"2018-08-18"}]
[null,null,null,"  8.","Курс выживания и спасения на море",4,"отл",{"$f":"VLOOKUP($A$7,DATA!$A$5:$X$88091,10,TRUE)","v":"2018-08-18"}]
[null,null,null,"  9.","Способы личного выживания \nи оказания первой помощи",4,"отл",{"$f":"VLOOKUP($A$7,DATA!$A$5:$X$88091,10,TRUE)","v":"2018-08-18"}]
["Личная подпись   __________",null,null," 10.","Правила парусных соревнований",12,"хор",{"$f":"VLOOKUP($A$7,DATA!$A$5:$X$88091,10,TRUE)","v":"2018-08-18"}]
[null,null,null,"*11","Английский язык - термины в правилах парусных соревнований и морской практике",2,"отл",{"$f":"VLOOKUP($A$7,DATA!$A$5:$X$88091,10,TRUE)","v":"2018-08-18"}]
["Отметка врача о допуске к занятиям парусным спортом:",null,null,"       Заключение по результатам квалификационных испытаний "]
["______________________________________________________",null,null,{"$f":"\"по теоретической подготовке\"","v":"по теоретической подготовке"},null,null,{"$f":"B26","v":"ЯХТЕННЫЙ РУЛЕВОЙ 6 м.кв"},{"$f":"IF(VLOOKUP($A$7,DATA!$A$5:$S$88615,2,TRUE)=\"YSC\",\"ПРИБРЕЖНОГО  ПЛАВАНИЯ \",\"\")","v":""},{"$f":"IF(VLOOKUP($A$7,DATA!$A$5:$S$88615,2,TRUE)=\"DS\",\"ДНЕВНОГО   ПЛАВАНИЯ \",\"\")","v":""}]
["Отметка о плавательной (судоводительской) практике:",null,null,{"$f":"\"Председателя экзаменационной комиссии  г.Москвы  _________           \"","v":"Председателя экзаменационной комиссии  г.Москвы  _________           "},null,null,null,null," Маслов А.О."]
[{"$f":"\"   \"&VLOOKUP($A$7,DATA!$A$5:$X$88091,4,TRUE)&\" занимается с   \"&VLOOKUP($A$7,DATA!$A$5:$X$88091,17,TRUE)&\" года\"","v":"   Мозолевский Антон занимается с    года"},null,null,"                                                                 ( подпись, фамилия, дата)",null,null,null,null,{"$f":"H1","v":"2018-08-18"}]
["                                       ( фамилия, имя, отчество )                                                   ",null,null,"                            Результаты квалификационных испытаний "]
["Практические навыки по управлению яхтой получил(а) ",null,null,"                                      по практической подготовке:       "]
[" в качестве -",{"$f":"IF(VLOOKUP($A$7,DATA!$A$5:$S$88615,2,TRUE)=\"Sailing Boat Helmsman 22\",\"   ЯХТЕННЫЙ РУЛЕВОЙ 22 м.кв\",\"ЯХТЕННЫЙ РУЛЕВОЙ 6 м.кв\")","v":"ЯХТЕННЫЙ РУЛЕВОЙ 6 м.кв"},null,{"$f":"\"Дата/Акватория \"","v":"Дата/Акватория "},null,null,null,null,{"$f":"\"  \"&VLOOKUP($A$7,DATA!$A$5:$S$88615,11,TRUE)","v":"  Квалификационная комиссия  ФПС МО 11.08.2018"}]
[{"$f":"\" уч.центр     \"&VLOOKUP($A$7,DATA!$A$5:$S$88615,12,TRUE)","v":" уч.центр     08.01.2003 г. Москва ул. Дубнинская "},null,null,{"$f":"\" Гидрометеорологические условия:  \"","v":" Гидрометеорологические условия:  "},null,null,null,null,{"$f":"\"   \"&VLOOKUP($A$7,DATA!$A$5:$S$88615,12,TRUE)","v":"   08.01.2003 г. Москва ул. Дубнинская "}]
[" ( должность в команде яхты )",null,"Рулевой"," Заключение по результатам квалификационных испытаний:"]
[{"$f":"\"   \"&VLOOKUP($A$7,DATA!$A$5:$S$88615,11,TRUE)","v":"   Квалификационная комиссия  ФПС МО 11.08.2018"},null,null,"         Подпись экзаменатора: ________________         Маслов А.О.          ",null,null,null,null,{"$f":"H1","v":"2018-08-18"}]
["(Дата / акватория/  тип судна / длина яхты/ )",null,null,"    председателя экзаменационной комиссии г. Москвы         (подпись, фамилия, дата)"]
["и  овладел необходимыми навыками и рекомендуется к сдаче экзаменов",null,null,"                       Отметка о присвоении квалификационного звания:"]
["на звание яхтенного рулевого парусной яхты.",null,null,null,{"$f":"B26","v":"ЯХТЕННЫЙ РУЛЕВОЙ 6 м.кв"}]
["Приложение ( Копия судовой роли,  диплома об окончании курса …и.т.п.)",null,null,null,null,"Протокол   (№  и дата)   ",{"$f":"VLOOKUP($A$7,DATA!$A$5:$X$88091,16,TRUE)","v":"128/2018 КВ от 15.08.2018"}]
["Рулевой–инструктор _________________( подпись, фамилия, дата) "]
[{"$f":"VLOOKUP($A$7,DATA!$A$5:$X$88091,12,TRUE)","v":"08.01.2003 г. Москва ул. Дубнинская "},null,null,"Подпись Председателя Квалификационной комиссии  ВФПС :                 "]
[" место печати школы     /подпись руководителя яхт-клуба (школы) фамилия, дата/"]

{"sheet":"0","index":2,"n_rows":17,"n_cols":3,"rows_kept":17,"cut":false,"hidden":false,"merged":[[1,1,1,2]]}
["Экзаменационные вопросы  - РУЛЕВОЙ  ПАРУСНОЙ ЯХТЫ 6 кв.м",null,{"$f":"LIST!H1","v":"2018-08-18"}]
[null,"КВАЛИФИКАЦИОННЫЕ ТРЕБОВАНИЯ ПОДГОТОВКИ РУЛЕВЫХ И КАПИТАНОВ ПАРУСНЫХ ЯХТ"]
[null,"Экзаменатор  - Маслов А.О.",{"$f":"\"Испытуемый  \"&LIST!B3","v":"Испытуемый   Имя    Мозолевский Антон"}]
[null,"Билет ",{"$f":"LIST!H3","v":"4"}]
[null,"Дисциплина     Личная Безопасность"]
[null,{"$f":"\"ответить на вопрос           \"     &  CHAR(10) &  CHAR(10) &          VLOOKUP(IF(($C$4+RANDBETWEEN(1,20))<20,RANDBETWEEN(1,20),RANDBETWEEN(1,20)),Безопасность!A1:C20,2,FALSE)","v":"ответить на вопрос           \n\nЧто ты будешь делать если ты оказался в воде."},{"$f":"\"            Правила Парусных Гонок        \"     &  CHAR(10) &  \"ответить на вопрос  \"&CHAR(10) &          VLOOKUP(IF(($C$4+RANDBETWEEN(1,20))<20,RANDBETWEEN(1,20),RANDBETWEEN(1,20)),Безопасность!G1:H20,2,FALSE)","v":"            Правила Парусных Гонок        \nответить на вопрос  \nПРАВИЛО   41.Посторонняя помощь ( написать текст правила)"}]
[null,{"$f":"\"            ответить на вопрос           \"     &  CHAR(10) &           VLOOKUP(IF(($C$4+RANDBETWEEN(1,20))<20,RANDBETWEEN(1,20),RANDBETWEEN(1,20)),Навигация!A1:C20,2,FALSE)","v":"            ответить на вопрос           \nПроверка яхты перед выходом на соответствие правилам класса"},"Подписать  - что означают эти знаки"]
[1,"Конструкция"]
[null,null,"Подписать части яхты"]
[null,{"$f":"\"            ответить на вопрос           \"      &           VLOOKUP(IF(($C$4+RANDBETWEEN(1,20))<20,RANDBETWEEN(1,20),RANDBETWEEN(1,20)),'Паруса рангойт такелаж'!A1:C20,2,FALSE)\n&  CHAR(10)&  CHAR(10)&  CHAR(10)&  CHAR(10)\n&\"            ответить на вопрос           \"     &  CHAR(10) &          VLOOKUP(IF(($C$4+RANDBETWEEN(1,20))<20,RANDBETWEEN(1,20),RANDBETWEEN(1,20)),Конструкция!A1:C20,2,FALSE)","v":"            ответить на вопрос           Что такое фал? Грота фал? Стаксель фал?\n\n\n\n            ответить на вопрос           \nУстройство Шарнира  (полумеханника, два веста фиксации,  - зачем так сделано?"}]
[null,{"$f":"\"Практические навыки  управление яхтой. Напишите что вы делаете при:     \"     &  CHAR(10) &  CHAR(10)&           VLOOKUP(IF(($C$4+RANDBETWEEN(1,20))<20,RANDBETWEEN(1,20),RANDBETWEEN(1,20)),Практика!A1:B20,2,FALSE)","v":"Практические навыки  управление яхтой. Напишите что вы делаете при:     \n\nЗадний ход, дрейф."},{"$f":"\"            ответить на вопрос           \"     &  CHAR(10) &           VLOOKUP(IF(($C$4+RANDBETWEEN(1,20))<20,RANDBETWEEN(1,20),RANDBETWEEN(1,20)),Управление!D1:E20,2,FALSE)","v":"            ответить на вопрос           \nОсобенности управления яхтой на полном курсе?"}]
[null,{"$f":"\"            ответить на вопрос           \"     &  CHAR(10) &           VLOOKUP(IF(($C$4+RANDBETWEEN(1,20))<20,RANDBETWEEN(1,20),RANDBETWEEN(1,20)),Управление!A1:D20,2,FALSE)","v":"            ответить на вопрос           \nДрейф. , дрейфовать."},"подписать курсы яхты\nпо отношению к ветру"]
[null,{"$f":"\"  Написать ОПРЕДЕЛЕНИЕ из ППГ (RRS)  \"& VLOOKUP(IF(($C$4+RANDBETWEEN(1,40))<40,RANDBETWEEN(1,40),RANDBETWEEN(1,40)),Правила!A1:C40,2,FALSE)","v":"  Написать ОПРЕДЕЛЕНИЕ из ППГ (RRS)  Откладывать. "},4]
[null,{"$f":"\" ВОПРОС  \"&CHAR(10)& VLOOKUP(IF(($C$4+RANDBETWEEN(1,40))<40,RANDBETWEEN(1,40),RANDBETWEEN(1,40)),Правила!D1:E40,2,FALSE)","v":" ВОПРОС  \nКто нарушил правила? чисто впереди -чисто позади "},{"$f":"\" Поясните   Правила Расхождения \nКОГДА ЯХТЫ ВСТРЕЧАЮТСЯ \"&CHAR(10)&VLOOKUP(IF(($C$4+RANDBETWEEN(1,20))<20,RANDBETWEEN(1,20),RANDBETWEEN(1,20)),Право!A1:C20,2,FALSE)","v":" Поясните   Правила Расхождения \nКОГДА ЯХТЫ ВСТРЕЧАЮТСЯ \nПраво дороги Правило 11  НА ОДНОМ ГАЛСЕ. СВЯЗАННЫ"}]
[null,{"$f":"VLOOKUP(IF(($C$4+RANDBETWEEN(1,20))<20,RANDBETWEEN(1,20),RANDBETWEEN(1,20)),Управление!A1:F20,2,FALSE)","v":"Полные курсы. Крен, псадка яхтсмена и продольный дифферент."},{"$f":"\"         Что означает этот сигнал         \"     &  CHAR(10) &           VLOOKUP(IF(($C$4+RANDBETWEEN(1,20))<20,RANDBETWEEN(1,20),RANDBETWEEN(1,20)),Сигналы!A1:C20,2,FALSE)","v":"         Что означает этот сигнал         \nЗеленый флаг"}]
[null,{"$f":"\"           завязать узел         \"\n&  CHAR(10) &  CHAR(10)\n&           VLOOKUP(IF(($C$4+RANDBETWEEN(1,20))<20,RANDBETWEEN(1,20),RANDBETWEEN(1,20)),Узлы!A1:C20,2,FALSE)&CHAR(10)","v":"           завязать узел         \n\nвосьмерка\n"},"Подпишите 5 любых узлов"]
[null,{"$f":"\"Пояснить что такое  -  \"\n&CHAR(10)\n&     VLOOKUP(IF(($C$4+RANDBETWEEN(1,20))<20,RANDBETWEEN(1,20),RANDBETWEEN(1,20)),Узлы!D1:E20,2,FALSE)","v":"Пояснить что такое  -  \nЧто такое Ворса  ?"}]

{"sheet":"1","index":3,"n_rows":17,"n_cols":3,"rows_kept":17,"cut":false,"hidden":false,"merged":[[1,1,1,2],[8,1,8,2]]}
["Экзаменационные вопросы  - РУЛЕВОЙ  ПАРУСНОЙ ЯХТЫ 6 кв.м",null,{"$f":"LIST!H1","v":"2018-08-18"}]
[null,"КВАЛИФИКАЦИОННЫЕ ТРЕБОВАНИЯ ПОДГОТОВКИ РУЛЕВЫХ И КАПИТАНОВ ПАРУСНЫХ ЯХТ"]
[null,"Экзаменатор  - Маслов А.О.",{"$f":"LIST!B3","v":" Имя    Мозолевский Антон"}]
[null,"Билет  ",{"$f":"LIST!H3","v":"4"}]
[null,"Дисциплина     Личная Безопасность"]
[null,{"$f":"\"ответить на вопрос           \"     &  CHAR(10) &  CHAR(10) &          VLOOKUP(IF(($C$4+RANDBETWEEN(1,20))<20,RANDBETWEEN(1,20),RANDBETWEEN(1,20)),Безопасность!A1:C20,2,FALSE)","v":"ответить на вопрос           \n\nЧто вы будете делать при усилении ветра до штормового."},{"$f":"\"            Правила Парусных Гонок        \"     &  CHAR(10) &  \"ответить на вопрос  \"&CHAR(10) &          VLOOKUP(IF(($C$4+RANDBETWEEN(1,20))<20,RANDBETWEEN(1,20),RANDBETWEEN(1,20)),Безопасность!G1:H20,2,FALSE)","v":"            Правила Парусных Гонок        \nответить на вопрос  \nWORLD SAILING.  СПЕЦИАЛЬНЫЕ ПРАВИЛА ДЛЯ  ГОНОК\n Переносное оборудование должно быть в наличии на яхте в гонке:\n-1\n- 2\n- 3\n-4\n- 5\n- 6"}]
[null,{"$f":"\"            ответить на вопрос           \"     &  CHAR(10) &           VLOOKUP(IF(($C$4+RANDBETWEEN(1,20))<20,RANDBETWEEN(1,20),RANDBETWEEN(1,20)),Навигация!A1:C20,2,FALSE)","v":"            ответить на вопрос           \nЧто означает  Судовой ход"},"Подписать  - что означают эти знаки"]
[1,"Конструкция","                                       Подписать части яхты"]
[]
[null,{"$f":"\"            ответить на вопрос           \"     &  CHAR(10) &           VLOOKUP(IF(($C$4+RANDBETWEEN(1,20))<20,RANDBETWEEN(1,20),RANDBETWEEN(1,20)),'Паруса рангойт такелаж'!A1:C20,2,FALSE)\n&  CHAR(10)&  CHAR(10)&  CHAR(10)&  CHAR(10)&  CHAR(10)\n&\"            ответить на вопрос           \"     &  CHAR(10) &          VLOOKUP(IF(($C$4+RANDBETWEEN(1,20))<20,RANDBETWEEN(1,20),RANDBETWEEN(1,20)),Конструкция!A1:C20,2,FALSE)","v":"            ответить на вопрос           \nУглы: фаловый, галсовый, шкотовый; нок-бензельный (боуты, фаловые дощечки); \n\n\n\n\n            ответить на вопрос           \nУстройство Латы 6 шт. одна трубчатая. Две латы с упорами (камбер). Натяжитель-лата-лепесток-упор."},"подписать \nчасти паруса"]
[null,{"$f":"\"Практические навыки  управление яхтой. Напишите что вы делаете при:     \"     &  CHAR(10) &  CHAR(10)&           VLOOKUP(IF(($C$4+RANDBETWEEN(1,20))<20,RANDBETWEEN(1,20),RANDBETWEEN(1,20)),Практика!A1:B20,2,FALSE)","v":"Практические навыки  управление яхтой. Напишите что вы делаете при:     \n\nПодход к бочке при различных курсах."},{"$f":"\"            ответить на вопрос           \"     &  CHAR(10) &           VLOOKUP(IF(($C$4+RANDBETWEEN(1,20))<20,RANDBETWEEN(1,20),RANDBETWEEN(1,20)),Управление!D1:E20,2,FALSE)","v":"            ответить на вопрос           \nОсобенности управления яхтой на полном курсе?"}]
[null,{"$f":"\"            ответить на вопрос           \"     &  CHAR(10) &           VLOOKUP(IF(($C$4+RANDBETWEEN(1,20))<20,RANDBETWEEN(1,20),RANDBETWEEN(1,20)),Управление!A1:D20,2,FALSE)","v":"            ответить на вопрос           \nПоворот овершта. Составные части поворота. Основные ошибки и их исправления."},"подписать курсы яхты\nпо отношению к ветру"]
[null,{"$f":"\"  Написать ОПРЕДЕЛЕНИЕ из ППГ (RRS)  \"& VLOOKUP(IF(($C$4+RANDBETWEEN(1,40))<40,RANDBETWEEN(1,40),RANDBETWEEN(1,40)),Правила!A1:C40,2,FALSE)","v":"  Написать ОПРЕДЕЛЕНИЕ из ППГ (RRS)  Выполнение наказания"},{"$f":"\"        Укажите цифровые  вымпела          \"&CHAR(10)&CHAR(10)&VLOOKUP(IF(($C$4+RANDBETWEEN(1,20))<20,RANDBETWEEN(1,20),RANDBETWEEN(1,20)),Цифры!A1:C20,2,FALSE)&\" и \"&VLOOKUP(IF(($C$4+RANDBETWEEN(1,20))<20,RANDBETWEEN(1,20),RANDBETWEEN(1,20)),Цифры!A1:C20,2,FALSE)&\" и \"&VLOOKUP(IF(($C$4+RANDBETWEEN(1,20))<20,RANDBETWEEN(1,20),RANDBETWEEN(1,20)),Цифры!A1:C20,2,FALSE)","v":"        Укажите цифровые  вымпела          \n\n6 и 2 и 5"}]
[null,{"$f":"\" ВОПРОС  \"&CHAR(10)& VLOOKUP(IF(($C$4+RANDBETWEEN(1,40))<40,RANDBETWEEN(1,40),RANDBETWEEN(1,40)),Правила!D1:E40,2,FALSE)","v":" ВОПРОС  \nКакая из яхт имеет право дороги ? (подветренный-наветренный)"},{"$f":"\" Поясните   Правила Расхождения \nКОГДА ЯХТЫ ВСТРЕЧАЮТСЯ \"&CHAR(10)&VLOOKUP(IF(($C$4+RANDBETWEEN(1,20))<20,RANDBETWEEN(1,20),RANDBETWEEN(1,20)),Право!A1:C20,2,FALSE)","v":" Поясните   Правила Расхождения \nКОГДА ЯХТЫ ВСТРЕЧАЮТСЯ \nПраво дороги Правило 14  ВО ВРЕМЯ ПОВОРОТА ОВЕРШТАГ"}]
[null,{"$f":"VLOOKUP(IF(($C$4+RANDBETWEEN(1,20))<20,RANDBETWEEN(1,20),RANDBETWEEN(1,20)),Управление!A1:F20,2,FALSE)","v":"Лавировка  на волне.  Работа парусов"},{"$f":"\"         Что означает этот сигнал         \"     &  CHAR(10) &           VLOOKUP(IF(($C$4+RANDBETWEEN(1,20))<20,RANDBETWEEN(1,20),RANDBETWEEN(1,20)),Сигналы!A1:C20,2,FALSE)","v":"         Что означает этот сигнал         \nКрасный флаг"}]
[null,{"$f":"\"           завязать узел         \"     &  CHAR(10) &           VLOOKUP(IF(($C$4+RANDBETWEEN(1,20))<20,RANDBETWEEN(1,20),RANDBETWEEN(1,20)),Узлы!A1:C20,2,FALSE)&CHAR(10)","v":"           завязать узел         \nБеседочный\n"},"Подпишите 5 любых узлов"]
[null,{"$f":"\"Пояснить что такое  -  \"\n&  CHAR(10)\n&     VLOOKUP(IF(($C$4+RANDBETWEEN(1,20))<20,RANDBETWEEN(1,20),RANDBETWEEN(1,20)),Узлы!D1:E20,2,FALSE)\n&    CHAR(10)","v":"Пояснить что такое  -  \nЧто такое Конец  ?\n"}]

{"sheet":"2","index":4,"n_rows":17,"n_cols":7,"rows_kept":17,"cut":false,"hidden":false,"merged":[[1,1,1,2]]}
["Экзаменационные вопросы  - РУЛЕВОЙ  ПАРУСНОЙ ЯХТЫ 6 кв.м",null,{"$f":"LIST!H1","v":"2018-08-18"},null,4,null,6]
[null,"КВАЛИФИКАЦИОННЫЕ ТРЕБОВАНИЯ ПОДГОТОВКИ РУЛЕВЫХ И КАПИТАНОВ ПАРУСНЫХ ЯХТ"]
[null,"Экзаменатор  - Маслов А.О.",{"$f":"LIST!B3","v":" Имя    Мозолевский Антон"}]
[null,"Билет ",{"$f":"LIST!H3","v":"4"}]
[null,"Дисциплина     Личная Безопасность"]
[null,{"$f":"\"ответить на вопрос           \"     &  CHAR(10) &  CHAR(10) &          VLOOKUP(IF(($C$4+RANDBETWEEN(1,20))<20,RANDBETWEEN(1,20),RANDBETWEEN(1,20)),Безопасность!A1:C20,2,FALSE)","v":"ответить на вопрос           \n\nРеагирование на сигналы бедствия; "},{"$f":"\"            Правила Парусных Гонок        \"     &  CHAR(10) &  \"ответить на вопрос  \"&CHAR(10) &          VLOOKUP(IF(($C$4+RANDBETWEEN(1,20))<20,RANDBETWEEN(1,20),RANDBETWEEN(1,20)),Безопасность!G1:H20,2,FALSE)","v":"            Правила Парусных Гонок        \nответить на вопрос  \nПеречислите что  запрещается парусному судну: \n- 1.\n- 2.\n- 3."}]
[null,{"$f":"\"            ответить на вопрос           \"     &  CHAR(10) &           VLOOKUP(IF(($C$4+RANDBETWEEN(1,20))<20,RANDBETWEEN(1,20),RANDBETWEEN(1,20)),Навигация!A1:C20,2,FALSE)","v":"            ответить на вопрос           \nПравила безопасности на яхте"},"Подписать  - что означают эти знаки"]
[1,"Конструкция","Подписать части яхты"]
[]
[null,{"$f":"\"            ответить на вопрос           \"     &  CHAR(10) &           VLOOKUP(IF(($C$4+RANDBETWEEN(1,20))<20,RANDBETWEEN(1,20),RANDBETWEEN(1,20)),'Паруса рангойт такелаж'!A1:C20,2,FALSE)\n&  CHAR(10)&  CHAR(10)&  CHAR(10)&  CHAR(10)&  CHAR(10)\n&\"            ответить на вопрос           \"     &  CHAR(10) &          VLOOKUP(IF(($C$4+RANDBETWEEN(1,20))<20,RANDBETWEEN(1,20),RANDBETWEEN(1,20)),Конструкция!A1:C20,2,FALSE)","v":"            ответить на вопрос           \nМатериал паруса ( тканные и нетканные)\n\n\n\n\n            ответить на вопрос           \nУстройство  Ножные петли."},"                 подписать \n                части паруса"]
[null,{"$f":"\"Практические навыки  управление яхтой. Напишите что вы делаете при:     \"     &  CHAR(10) &  CHAR(10)&           VLOOKUP(IF(($C$4+RANDBETWEEN(1,20))<20,RANDBETWEEN(1,20),RANDBETWEEN(1,20)),Практика!A1:B20,2,FALSE)","v":"Практические навыки  управление яхтой. Напишите что вы делаете при:     \n\n Отход от причала при различных направлениях ветра. Выход из гавани."},{"$f":"\"            ответить на вопрос           \"     &  CHAR(10) &           VLOOKUP(IF(($C$4+RANDBETWEEN(1,20))<20,RANDBETWEEN(1,20),RANDBETWEEN(1,20)),Управление!D1:E20,2,FALSE)","v":"            ответить на вопрос           \nЧто такое правый галс?"}]
[null,{"$f":"\"            ответить на вопрос           \"     &  CHAR(10) &           VLOOKUP(IF(($C$4+RANDBETWEEN(1,20))<20,RANDBETWEEN(1,20),RANDBETWEEN(1,20)),Управление!A1:D20,2,FALSE)","v":"            ответить на вопрос           \nТермины. Слабина, выбрать (подобрать), выбрать в тугую (обтянуть), травить (потравить), заложить, закрепить, отдать (отдать якорь), раздёрнуть."},"подписать курсы яхты\nпо отношению к ветру"]
[null,{"$f":"\"  Написать ОПРЕДЕЛЕНИЕ из ППГ (RRS)  \"& VLOOKUP(IF(($C$4+RANDBETWEEN(1,40))<40,RANDBETWEEN(1,40),RANDBETWEEN(1,40)),Правила!A1:C40,2,FALSE)","v":"  Написать ОПРЕДЕЛЕНИЕ из ППГ (RRS)  Подветренная и наветренная. "},{"$f":"\"        Укажите цифровые  вымпела          \"&CHAR(10)&CHAR(10)&VLOOKUP(IF(($C$4+RANDBETWEEN(1,20))<20,RANDBETWEEN(1,20),RANDBETWEEN(1,20)),Цифры!A1:C20,2,FALSE)&\" и \"&VLOOKUP(IF(($C$4+RANDBETWEEN(1,20))<20,RANDBETWEEN(1,20),RANDBETWEEN(1,20)),Цифры!A1:C20,2,FALSE)&\" и \"&VLOOKUP(IF(($C$4+RANDBETWEEN(1,20))<20,RANDBETWEEN(1,20),RANDBETWEEN(1,20)),Цифры!A1:C20,2,FALSE)","v":"        Укажите цифровые  вымпела          \n\n2 и 6 и 1"}]
[null,{"$f":"\" ВОПРОС  \"&CHAR(10)& VLOOKUP(IF(($C$4+RANDBETWEEN(1,40))<40,RANDBETWEEN(1,40),RANDBETWEEN(1,40)),Правила!D1:E40,2,FALSE)","v":" ВОПРОС  \nС какого момента яхта считается стартовавшей?"},{"$f":"\" Поясните   Правила Расхождения \nКОГДА ЯХТЫ ВСТРЕЧАЮТСЯ \"&CHAR(10)&VLOOKUP(IF(($C$4+RANDBETWEEN(1,20))<20,RANDBETWEEN(1,20),RANDBETWEEN(1,20)),Право!A1:C20,2,FALSE)","v":" Поясните   Правила Расхождения \nКОГДА ЯХТЫ ВСТРЕЧАЮТСЯ \nОбщие ограничения. Правило 17 На одном галсе. Надлежащий курс"}]
[null,{"$f":"VLOOKUP(IF(($C$4+RANDBETWEEN(1,20))<20,RANDBETWEEN(1,20),RANDBETWEEN(1,20)),Управление!A1:F20,2,FALSE)","v":"Острые курсы: бейдевинд крутой и полный; галфвинд. Полные курсы: бакштаг острый и полный, фордевинд. Положение левентик."},{"$f":"\"         Что означает этот сигнал         \"     &  CHAR(10) &           VLOOKUP(IF(($C$4+RANDBETWEEN(1,20))<20,RANDBETWEEN(1,20),RANDBETWEEN(1,20)),Сигналы!A1:C20,2,FALSE)","v":"         Что означает этот сигнал         \nN над A"}]
[null,{"$f":"\"           завязать узел         \"     &  CHAR(10) &           VLOOKUP(IF(($C$4+RANDBETWEEN(1,20))<20,RANDBETWEEN(1,20),RANDBETWEEN(1,20)),Узлы!A1:C20,2,FALSE)&CHAR(10)","v":"           завязать узел         \nвосьмерка\n"},"Подпишите 5 любых узлов"]
[null,{"$f":"\"Пояснить что такое  -  \"\n&  CHAR(10)\n&     VLOOKUP(IF(($C$4+RANDBETWEEN(1,20))<20,RANDBETWEEN(1,20),RANDBETWEEN(1,20)),Узлы!D1:E20,2,FALSE)\n&    CHAR(10)","v":"Пояснить что такое  -  \nЧто такое Фал ?\n"}]

{"sheet":"3","index":5,"n_rows":17,"n_cols":17,"rows_kept":17,"cut":false,"hidden":false,"merged":[[1,1,1,2]]}
["Экзаменационные вопросы  - РУЛЕВОЙ  ПАРУСНОЙ ЯХТЫ 6 кв.м",null,{"$f":"LIST!H1","v":"2018-08-18"}]
[null,"КВАЛИФИКАЦИОННЫЕ ТРЕБОВАНИЯ ПОДГОТОВКИ РУЛЕВЫХ И КАПИТАНОВ ПАРУСНЫХ ЯХТ"]
[null,"Экзаменатор  - Маслов А.О.",{"$f":"LIST!B3","v":" Имя    Мозолевский Антон"}]
[null,"Билет ",{"$f":"LIST!H3","v":"4"}]
[null,"Дисциплина     Личная Безопасность"]
[null,{"$f":"\"ответить на вопрос           \"     &  CHAR(10) &  CHAR(10) &          VLOOKUP(IF(($C$4+RANDBETWEEN(1,20))<20,RANDBETWEEN(1,20),RANDBETWEEN(1,20)),Безопасность!A1:C20,2,FALSE)","v":"ответить на вопрос           \n\nПредотвращение выпадения человек за борт"},{"$f":"\"            Правила Парусных Гонок        \"     &  CHAR(10) &  \"ответить на вопрос  \"&CHAR(10) &          VLOOKUP(IF(($C$4+RANDBETWEEN(1,20))<20,RANDBETWEEN(1,20),RANDBETWEEN(1,20)),Безопасность!G1:H20,2,FALSE)","v":"            Правила Парусных Гонок        \nответить на вопрос  \nПРАВИЛО   41.Посторонняя помощь ( написать текст правила)"}]
[null,{"$f":"\"            ответить на вопрос           \"     &  CHAR(10) &           VLOOKUP(IF(($C$4+RANDBETWEEN(1,20))<20,RANDBETWEEN(1,20),RANDBETWEEN(1,20)),Навигация!A1:C20,2,FALSE)","v":"            ответить на вопрос           \nдля чего бакены покрашены в разный цвет"},"Подписать  - что означают эти знаки"]
[1,"Конструкция","Подписать части яхты"]
[]
[null,{"$f":"\"            ответить на вопрос           \"     &  CHAR(10) &           VLOOKUP(IF(($C$4+RANDBETWEEN(1,20))<20,RANDBETWEEN(1,20),RANDBETWEEN(1,20)),'Паруса рангойт такелаж'!A1:C20,2,FALSE)\n&  CHAR(10)&  CHAR(10)&  CHAR(10)&  CHAR(10)&  CHAR(10)\n&\"            ответить на вопрос           \"     &  CHAR(10) &          VLOOKUP(IF(($C$4+RANDBETWEEN(1,20))<20,RANDBETWEEN(1,20),RANDBETWEEN(1,20)),Конструкция!A1:C20,2,FALSE)","v":"            ответить на вопрос           \nМатериал паруса ( тканные и нетканные)\n\n\n\n\n            ответить на вопрос           \nРангоут, такелаж. Устройство и назначение элементов, Мачты СДМ 430, 460, 490 сколько угля в %?  Удлинитель 40см с двумя роликами и стопором, Гик с удлинителем 205-265, щелевыми стопорам 4-8 мм, Передняя оковка с клипсой шкотиком, Задняя оковка с тремя роликами и стопором"},"подписать\n части паруса"]
[null,{"$f":"\"Практические навыки  управление яхтой. Напишите что вы делаете при:     \"     &  CHAR(10) &  CHAR(10)&           VLOOKUP(IF(($C$4+RANDBETWEEN(1,20))<20,RANDBETWEEN(1,20),RANDBETWEEN(1,20)),Практика!A1:B20,2,FALSE)","v":"Практические навыки  управление яхтой. Напишите что вы делаете при:     \n\nЗадний ход, дрейф."},{"$f":"\"            ответить на вопрос           \"     &  CHAR(10) &           VLOOKUP(IF(($C$4+RANDBETWEEN(1,20))<20,RANDBETWEEN(1,20),RANDBETWEEN(1,20)),Управление!D1:E20,2,FALSE)","v":"            ответить на вопрос           \nЧто такое правый галс?"}]
[null,{"$f":"\"            ответить на вопрос           \"     &  CHAR(10) &           VLOOKUP(IF(($C$4+RANDBETWEEN(1,20))<20,RANDBETWEEN(1,20),RANDBETWEEN(1,20)),Управление!A1:D20,2,FALSE)","v":"            ответить на вопрос           \nКурсы яхты: курс относительно ветра. "},"подписать курсы яхты\nпо отношению к ветру"]
[null,{"$f":"\"  Написать ОПРЕДЕЛЕНИЕ из ППГ (RRS)  \"& VLOOKUP(IF(($C$4+RANDBETWEEN(1,40))<40,RANDBETWEEN(1,40),RANDBETWEEN(1,40)),Правила!A1:C40,2,FALSE)","v":"  Написать ОПРЕДЕЛЕНИЕ из ППГ (RRS)  Галс, правый галс или левый галс. "},{"$f":"\"        Укажите цифровые  вымпела          \"&CHAR(10)&CHAR(10)&VLOOKUP(IF(($C$4+RANDBETWEEN(1,20))<20,RANDBETWEEN(1,20),RANDBETWEEN(1,20)),Цифры!A1:C20,2,FALSE)&\" и \"&VLOOKUP(IF(($C$4+RANDBETWEEN(1,20))<20,RANDBETWEEN(1,20),RANDBETWEEN(1,20)),Цифры!A1:C20,2,FALSE)&\" и \"&VLOOKUP(IF(($C$4+RANDBETWEEN(1,20))<20,RANDBETWEEN(1,20),RANDBETWEEN(1,20)),Цифры!A1:C20,2,FALSE)","v":"        Укажите цифровые  вымпела          \n\n1 и 3 и 2"},null,null,null,null,null,null,null,null,null,null,null,null,null,-3]
[null,{"$f":"\" ВОПРОС  \"&CHAR(10)& VLOOKUP(IF(($C$4+RANDBETWEEN(1,40))<40,RANDBETWEEN(1,40),RANDBETWEEN(1,40)),Правила!D1:E40,2,FALSE)","v":" ВОПРОС  \nКто нарушил правила? чисто впереди -чисто позади "},{"$f":"\" Поясните   Правила Расхождения \nКОГДА ЯХТЫ ВСТРЕЧАЮТСЯ \"&CHAR(10)&VLOOKUP(IF(($C$4+RANDBETWEEN(1,20))<20,RANDBETWEEN(1,20),RANDBETWEEN(1,20)),Право!A1:C20,2,FALSE)","v":" Поясните   Правила Расхождения \nКОГДА ЯХТЫ ВСТРЕЧАЮТСЯ \nПраво дороги Правило 11  НА ОДНОМ ГАЛСЕ. СВЯЗАННЫ"}]
[null,{"$f":"VLOOKUP(IF(($C$4+RANDBETWEEN(1,20))<20,RANDBETWEEN(1,20),RANDBETWEEN(1,20)),Управление!A1:F20,2,FALSE)","v":"Полные курсы. Поворот фордевинд в слабый, сильный ветер, на волне. "},{"$f":"\"         Что означает этот сигнал         \"     &  CHAR(10) &           VLOOKUP(IF(($C$4+RANDBETWEEN(1,20))<20,RANDBETWEEN(1,20),RANDBETWEEN(1,20)),Сигналы!A1:C20,2,FALSE)","v":"         Что означает этот сигнал         \nAP над H"}]
[null,{"$f":"\"           завязать узел         \"     &  CHAR(10) &           VLOOKUP(IF(($C$4+RANDBETWEEN(1,20))<20,RANDBETWEEN(1,20),RANDBETWEEN(1,20)),Узлы!A1:C20,2,FALSE)&CHAR(10)","v":"           завязать узел         \nБуксирный\n"},"Подпишите 5 любых узлов"]
[null,{"$f":"\"Пояснить что такое  -  \"\n&  CHAR(10)\n&     VLOOKUP(IF(($C$4+RANDBETWEEN(1,20))<20,RANDBETWEEN(1,20),RANDBETWEEN(1,20)),Узлы!D1:E20,2,FALSE)\n&    CHAR(10)","v":"Пояснить что такое  -  \nЧто такое Гардаман ?\n"}]

{"sheet":"4","index":6,"n_rows":17,"n_cols":7,"rows_kept":17,"cut":false,"hidden":false,"merged":[[1,1,1,2]]}
["Экзаменационные вопросы  - РУЛЕВОЙ  ПАРУСНОЙ ЯХТЫ 6 кв.м",null,{"$f":"LIST!H1","v":"2018-08-18"},null,7,null,9]
[null,"КВАЛИФИКАЦИОННЫЕ ТРЕБОВАНИЯ ПОДГОТОВКИ РУЛЕВЫХ И КАПИТАНОВ ПАРУСНЫХ ЯХТ"]
[null,"Экзаменатор  - Маслов А.О.",{"$f":"LIST!B3","v":" Имя    Мозолевский Антон"}]
[null,"Билет  ",{"$f":"LIST!H3","v":"4"}]
[null,"Дисциплина     Личная Безопасность"]
[null,{"$f":"\"ответить на вопрос           \"     &  CHAR(10) &  CHAR(10) &          VLOOKUP(IF(($C$4+RANDBETWEEN(1,20))<20,RANDBETWEEN(1,20),RANDBETWEEN(1,20)),Безопасность!A1:C20,2,FALSE)","v":"ответить на вопрос           \n\nКак подавать сигналы бедствия"},{"$f":"\"            Правила Парусных Гонок        \"     &  CHAR(10) &  \"ответить на вопрос  \"&CHAR(10) &          VLOOKUP(IF(($C$4+RANDBETWEEN(1,20))<20,RANDBETWEEN(1,20),RANDBETWEEN(1,20)),Безопасность!G1:H20,2,FALSE)","v":"            Правила Парусных Гонок        \nответить на вопрос  \nПарусные суда должны пересекать судовой ход под углом -…......?"}]
[null,{"$f":"\"            ответить на вопрос           \"     &  CHAR(10) &           VLOOKUP(IF(($C$4+RANDBETWEEN(1,20))<20,RANDBETWEEN(1,20),RANDBETWEEN(1,20)),Навигация!A1:C20,2,FALSE)","v":"            ответить на вопрос           \nВ каких местах разрешено пересекать  судовой ход"},"Подписать  - что означают эти знаки"]
[1,"Конструкция"]
[null,null,"Подписать части яхты"]
[null,{"$f":"\"            ответить на вопрос           \"     &  CHAR(10) &           VLOOKUP(IF(($C$4+RANDBETWEEN(1,20))<20,RANDBETWEEN(1,20),RANDBETWEEN(1,20)),'Паруса рангойт такелаж'!A1:C20,2,FALSE)\n&  CHAR(10)&  CHAR(10)&  CHAR(10)&  CHAR(10)&  CHAR(10)\n&\"            ответить на вопрос           \"     &  CHAR(10) &          VLOOKUP(IF(($C$4+RANDBETWEEN(1,20))<20,RANDBETWEEN(1,20),RANDBETWEEN(1,20)),Конструкция!A1:C20,2,FALSE)","v":"            ответить на вопрос           \nПаруса. Треугольные и четырехугольные паруса. ( названия) \n\n\n\n\n            ответить на вопрос           \nУстройство Боута. Топовй с грибком, шкотовый два люверса, галсовый с тремя роликами  скольжения"}]
[null,"&  СИМВОЛ(10)&  СИМВОЛ(10)&  СИМВОЛ(10)&  СИМВОЛ(10)&  СИМВОЛ(10)",{"$f":"\"            ответить на вопрос           \"     &  CHAR(10) &           VLOOKUP(IF(($C$4+RANDBETWEEN(1,20))<20,RANDBETWEEN(1,20),RANDBETWEEN(1,20)),Управление!D1:E20,2,FALSE)","v":"            ответить на вопрос           \nЧто такое деферент?"}]
[null,"&\"            ответить на вопрос           \"     &  СИМВОЛ(10) &          ВПР(ЕСЛИ(($C$4+СЛУЧМЕЖДУ(1;20))<20;СЛУЧМЕЖДУ(1;20);СЛУЧМЕЖДУ(1;20));Конструкция!A1:C20;2;ЛОЖЬ)","подписать курсы яхты\nпо отношению к ветру"]
[null,{"$f":"\"  Написать ОПРЕДЕЛЕНИЕ из ППГ (RRS)  \"& VLOOKUP(IF(($C$4+RANDBETWEEN(1,40))<40,RANDBETWEEN(1,40),RANDBETWEEN(1,40)),Правила!A1:C40,2,FALSE)","v":"  Написать ОПРЕДЕЛЕНИЕ из ППГ (RRS)  Прекращать. "},4]
[null,{"$f":"\" ВОПРОС  \"&CHAR(10)& VLOOKUP(IF(($C$4+RANDBETWEEN(1,40))<40,RANDBETWEEN(1,40),RANDBETWEEN(1,40)),Правила!D1:E40,2,FALSE)","v":" ВОПРОС  \nЧто такое гонка?"},{"$f":"\" Поясните   Правила Расхождения \nКОГДА ЯХТЫ ВСТРЕЧАЮТСЯ \"&CHAR(10)&VLOOKUP(IF(($C$4+RANDBETWEEN(1,20))<20,RANDBETWEEN(1,20),RANDBETWEEN(1,20)),Право!A1:C20,2,FALSE)","v":" Поясните   Правила Расхождения \nКОГДА ЯХТЫ ВСТРЕЧАЮТСЯ \nОбщие ограничения. Правило 16 Изменения Курса"}]
[null,{"$f":"VLOOKUP(IF(($C$4+RANDBETWEEN(1,20))<20,RANDBETWEEN(1,20),RANDBETWEEN(1,20)),Управление!A1:F20,2,FALSE)","v":"Подветренная и наветренная стороны яхты. Положения на ветру, под ветром. Прямо по носу, прямо по корме, впереди с наветра (подветра), сзади с наветра (подветра), на траверзе с наветра (подветра)."},{"$f":"\"         Что означает этот сигнал         \"     &  CHAR(10) &           VLOOKUP(IF(($C$4+RANDBETWEEN(1,20))<20,RANDBETWEEN(1,20),RANDBETWEEN(1,20)),Сигналы!A1:C20,2,FALSE)","v":"         Что означает этот сигнал         \nAP над A"}]
[null,{"$f":"\"           завязать узел         \"\n&  CHAR(10) &  CHAR(10)\n&           VLOOKUP(IF(($C$4+RANDBETWEEN(1,20))<20,RANDBETWEEN(1,20),RANDBETWEEN(1,20)),Узлы!A1:C20,2,FALSE)&CHAR(10)","v":"           завязать узел         \n\nРыбацкий штык\n"},"Подпишите 5 любых узлов"]
[null,{"$f":"\"Пояснить что такое  -  \"\n&CHAR(10)\n&     VLOOKUP(IF(($C$4+RANDBETWEEN(1,20))<20,RANDBETWEEN(1,20),RANDBETWEEN(1,20)),Узлы!D1:E20,2,FALSE)","v":"Пояснить что такое  -  \nЧто такое Фал ?"}]

{"sheet":"5","index":7,"n_rows":17,"n_cols":17,"rows_kept":17,"cut":false,"hidden":false,"merged":[[1,1,1,2]]}
["Экзаменационные вопросы  - РУЛЕВОЙ  ПАРУСНОЙ ЯХТЫ 6 кв.м",null,{"$f":"LIST!H1","v":"2018-08-18"}]
[null,"КВАЛИФИКАЦИОННЫЕ ТРЕБОВАНИЯ ПОДГОТОВКИ РУЛЕВЫХ И КАПИТАНОВ ПАРУСНЫХ ЯХТ"]
[null,"Экзаменатор  - Маслов А.О.",{"$f":"LIST!B3","v":" Имя    Мозолевский Антон"}]
[null,"Билет ",{"$f":"LIST!H3","v":"4"}]
[null,"Дисциплина     Личная Безопасность"]
[null,{"$f":"\"ответить на вопрос           \"     &  CHAR(10) &  CHAR(10) &          VLOOKUP(IF(($C$4+RANDBETWEEN(1,20))<20,RANDBETWEEN(1,20),RANDBETWEEN(1,20)),Безопасность!A1:C20,2,FALSE)","v":"ответить на вопрос           \n\nИндивидуальные сигнальные устройства"},{"$f":"\"            Правила Парусных Гонок        \"     &  CHAR(10) &  \"ответить на вопрос  \"&CHAR(10) &          VLOOKUP(IF(($C$4+RANDBETWEEN(1,20))<20,RANDBETWEEN(1,20),RANDBETWEEN(1,20)),Безопасность!G1:H20,2,FALSE)","v":"            Правила Парусных Гонок        \nответить на вопрос  \nПеречислите что  запрещается парусному судну: \n- 1.\n- 2.\n- 3."}]
[null,{"$f":"\"            ответить на вопрос           \"     &  CHAR(10) &           VLOOKUP(IF(($C$4+RANDBETWEEN(1,20))<20,RANDBETWEEN(1,20),RANDBETWEEN(1,20)),Навигация!A1:C20,2,FALSE)","v":"            ответить на вопрос           \nРайоны плавания. Разрешенные акватории тренировок для вашей яхты"},"Подписать  - что означают эти знаки"]
[1,"Конструкция","Подписать части яхты"]
[null,null,"ТЕОРИЯ ДВИЖЕНИЯ ПАРУСНОЙ ДОСКИ"]
[null,{"$f":"\"            ответить на вопрос           \"     &  CHAR(10) &           VLOOKUP(IF(($C$4+RANDBETWEEN(1,20))<20,RANDBETWEEN(1,20),RANDBETWEEN(1,20)),'Паруса рангойт такелаж'!A1:C20,2,FALSE)\n&  CHAR(10)&  CHAR(10)&  CHAR(10)&  CHAR(10)&  CHAR(10)\n&\"            ответить на вопрос           \"     &  CHAR(10) &          VLOOKUP(IF(($C$4+RANDBETWEEN(1,20))<20,RANDBETWEEN(1,20),RANDBETWEEN(1,20)),Конструкция!A1:C20,2,FALSE)","v":"            ответить на вопрос           \nЧто такое фал? Грота фал? Стаксель фал?\n\n\n\n\n            ответить на вопрос           \nУстройство Швертового  колодеца, -Шверт, -Коробка, -фиксатор,-пружины, -шторки, -направляющие шторок, -фиксатор шторок"},"подписать\n части паруса"]
[null,{"$f":"\"Практические навыки  управление яхтой. Напишите что вы делаете при:     \"     &  CHAR(10) &  CHAR(10)&           VLOOKUP(IF(($C$4+RANDBETWEEN(1,20))<20,RANDBETWEEN(1,20),RANDBETWEEN(1,20)),Практика!A1:B20,2,FALSE)","v":"Практические навыки  управление яхтой. Напишите что вы делаете при:     \n\nУмение определять усиления ветра визуальными средствами."},{"$f":"\"            ответить на вопрос           \"     &  CHAR(10) &           VLOOKUP(IF(($C$4+RANDBETWEEN(1,20))<20,RANDBETWEEN(1,20),RANDBETWEEN(1,20)),Управление!D1:E20,2,FALSE)","v":"            ответить на вопрос           \nЧто такое поворот фордевинд?"}]
[null,{"$f":"\"            ответить на вопрос           \"     &  CHAR(10) &           VLOOKUP(IF(($C$4+RANDBETWEEN(1,20))<20,RANDBETWEEN(1,20),RANDBETWEEN(1,20)),Управление!A1:D20,2,FALSE)","v":"            ответить на вопрос           \nТермины. Слабина, выбрать (подобрать), выбрать в тугую (обтянуть), травить (потравить), заложить, закрепить, отдать (отдать якорь), раздёрнуть."},"подписать курсы яхты\nпо отношению к ветру"]
[null,{"$f":"\"  Написать ОПРЕДЕЛЕНИЕ из ППГ (RRS)  \"& VLOOKUP(IF(($C$4+RANDBETWEEN(1,40))<40,RANDBETWEEN(1,40),RANDBETWEEN(1,40)),Правила!A1:C40,2,FALSE)","v":"  Написать ОПРЕДЕЛЕНИЕ из ППГ (RRS)  Выходить на знак. "},{"$f":"\"        Укажите цифровые  вымпела          \"&CHAR(10)&CHAR(10)&VLOOKUP(IF(($C$4+RANDBETWEEN(1,20))<20,RANDBETWEEN(1,20),RANDBETWEEN(1,20)),Цифры!A1:C20,2,FALSE)&\" и \"&VLOOKUP(IF(($C$4+RANDBETWEEN(1,20))<20,RANDBETWEEN(1,20),RANDBETWEEN(1,20)),Цифры!A1:C20,2,FALSE)&\" и \"&VLOOKUP(IF(($C$4+RANDBETWEEN(1,20))<20,RANDBETWEEN(1,20),RANDBETWEEN(1,20)),Цифры!A1:C20,2,FALSE)","v":"        Укажите цифровые  вымпела          \n\n2 и 1 и 1"},null,null,null,null,null,null,null,null,null,null,null,null,null,-3]
[null,{"$f":"\" ВОПРОС  \"&CHAR(10)& VLOOKUP(IF(($C$4+RANDBETWEEN(1,40))<40,RANDBETWEEN(1,40),RANDBETWEEN(1,40)),Правила!D1:E40,2,FALSE)","v":" ВОПРОС  \nС кем связана яхта б ?   связанность "},{"$f":"\" Поясните   Правила Расхождения \nКОГДА ЯХТЫ ВСТРЕЧАЮТСЯ \"&CHAR(10)&VLOOKUP(IF(($C$4+RANDBETWEEN(1,20))<20,RANDBETWEEN(1,20),RANDBETWEEN(1,20)),Право!A1:C20,2,FALSE)","v":" Поясните   Правила Расхождения \nКОГДА ЯХТЫ ВСТРЕЧАЮТСЯ \nОбщие ограничения. Правило 14 Избегания Контакта"}]
[null,{"$f":"VLOOKUP(IF(($C$4+RANDBETWEEN(1,20))<20,RANDBETWEEN(1,20),RANDBETWEEN(1,20)),Управление!A1:F20,2,FALSE)","v":"Полные курсы. Крен, псадка яхтсмена и продольный дифферент."},{"$f":"\"         Что означает этот сигнал         \"     &  CHAR(10) &           VLOOKUP(IF(($C$4+RANDBETWEEN(1,20))<20,RANDBETWEEN(1,20),RANDBETWEEN(1,20)),Сигналы!A1:C20,2,FALSE)","v":"         Что означает этот сигнал         \nI"}]
[null,{"$f":"\"           завязать узел         \"     &  CHAR(10) &           VLOOKUP(IF(($C$4+RANDBETWEEN(1,20))<20,RANDBETWEEN(1,20),RANDBETWEEN(1,20)),Узлы!A1:C20,2,FALSE)&CHAR(10)","v":"           завязать узел         \nБеседочный\n"},"Подпишите 5 любых узлов"]
[null,{"$f":"\"Пояснить что такое  -  \"\n&  CHAR(10)\n&     VLOOKUP(IF(($C$4+RANDBETWEEN(1,20))<20,RANDBETWEEN(1,20),RANDBETWEEN(1,20)),Узлы!D1:E20,2,FALSE)\n&    CHAR(10)","v":"Пояснить что такое  -  \nЧто такое Шкот ?\n"}]

{"sheet":"6","index":8,"n_rows":17,"n_cols":7,"rows_kept":17,"cut":false,"hidden":false,"merged":[[1,1,1,2]]}
["Экзаменационные вопросы  - РУЛЕВОЙ  ПАРУСНОЙ ЯХТЫ 6 кв.м",null,{"$f":"LIST!H1","v":"2018-08-18"},null,4,null,6]
[null,"КВАЛИФИКАЦИОННЫЕ ТРЕБОВАНИЯ ПОДГОТОВКИ РУЛЕВЫХ И КАПИТАНОВ ПАРУСНЫХ ЯХТ"]
[null,"Экзаменатор  - Маслов А.О.",{"$f":"LIST!B3","v":" Имя    Мозолевский Антон"}]
[null,"Билет ",{"$f":"LIST!H3","v":"4"}]
[null,"Дисциплина     Личная Безопасность"]
[null,{"$f":"\"ответить на вопрос           \"     &  CHAR(10) &  CHAR(10) &          VLOOKUP(IF(($C$4+RANDBETWEEN(1,20))<20,RANDBETWEEN(1,20),RANDBETWEEN(1,20)),Безопасность!A1:C20,2,FALSE)","v":"ответить на вопрос           \n\nВ чем опасность близости судна к человеку за бортом; "},{"$f":"\"            Правила Парусных Гонок        \"     &  CHAR(10) &  \"ответить на вопрос  \"&CHAR(10) &          VLOOKUP(IF(($C$4+RANDBETWEEN(1,20))<20,RANDBETWEEN(1,20),RANDBETWEEN(1,20)),Безопасность!G1:H20,2,FALSE)","v":"            Правила Парусных Гонок        \nответить на вопрос  \nWORLD SAILING.  СПЕЦИАЛЬНЫЕ ПРАВИЛА ДЛЯ  ГОНОК\n Переносное оборудование должно быть в наличии на яхте в гонке:\n-1\n- 2\n- 3\n-4\n- 5\n- 6"}]
[null,{"$f":"\"            ответить на вопрос           \"     &  CHAR(10) &           VLOOKUP(IF(($C$4+RANDBETWEEN(1,20))<20,RANDBETWEEN(1,20),RANDBETWEEN(1,20)),Навигация!A1:C20,2,FALSE)","v":"            ответить на вопрос           \nЧто означает  Судовой ход"},"Подписать  - что означают эти знаки"]
[1,"Конструкция","Подписать части яхты"]
[null,"КАК УПРАВЛЯЕТСЯ ПАРУСНАЯ ДОСКА - ПОЯСНИТЬ"]
[null,{"$f":"\"            ответить на вопрос           \"     &  CHAR(10) &           VLOOKUP(IF(($C$4+RANDBETWEEN(1,20))<20,RANDBETWEEN(1,20),RANDBETWEEN(1,20)),'Паруса рангойт такелаж'!A1:C20,2,FALSE)\n&  CHAR(10)&  CHAR(10)&  CHAR(10)&  CHAR(10)&  CHAR(10)\n&\"            ответить на вопрос           \"     &  CHAR(10) &          VLOOKUP(IF(($C$4+RANDBETWEEN(1,20))<20,RANDBETWEEN(1,20),RANDBETWEEN(1,20)),Конструкция!A1:C20,2,FALSE)","v":"            ответить на вопрос           \nНазовите шкаторины паруса, способы удержания задней шкаторины\n\n\n\n\n            ответить на вопрос           \nРангоут, такелаж. Устройство и назначение элементов:  Старт шкот, Шкотовая летучка, усилие х 8 раз, без учета трения, Галсовая летучка, собрана на двух лонг-такельных двух шкивных двух обушковых блоках с щелевыми стопорами. Усилие на шкоте увеличивается, если я правильно посчитал, в 24 раза, "},"                              подписать \n                             части паруса"]
[null,{"$f":"\"Практические навыки  управление яхтой. Напишите что вы делаете при:     \"     &  CHAR(10) &  CHAR(10)&           VLOOKUP(IF(($C$4+RANDBETWEEN(1,20))<20,RANDBETWEEN(1,20),RANDBETWEEN(1,20)),Практика!A1:B20,2,FALSE)","v":"Практические навыки  управление яхтой. Напишите что вы делаете при:     \n\n Отход от причала при различных направлениях ветра. Выход из гавани."},{"$f":"\"            ответить на вопрос           \"     &  CHAR(10) &           VLOOKUP(IF(($C$4+RANDBETWEEN(1,20))<20,RANDBETWEEN(1,20),RANDBETWEEN(1,20)),Управление!D1:E20,2,FALSE)","v":"            ответить на вопрос           \nЧто такое крен? Его влияние на скорость"}]
[null,{"$f":"\"            ответить на вопрос           \"     &  CHAR(10) &           VLOOKUP(IF(($C$4+RANDBETWEEN(1,20))<20,RANDBETWEEN(1,20),RANDBETWEEN(1,20)),Управление!A1:D20,2,FALSE)","v":"            ответить на вопрос           \nОстрые курсы: бейдевинд крутой и полный; галфвинд. Полные курсы: бакштаг острый и полный, фордевинд. Положение левентик."},"подписать курсы яхты\nпо отношению к ветру"]
[null,{"$f":"\"  Написать ОПРЕДЕЛЕНИЕ из ППГ (RRS)  \"& VLOOKUP(IF(($C$4+RANDBETWEEN(1,40))<40,RANDBETWEEN(1,40),RANDBETWEEN(1,40)),Правила!A1:C40,2,FALSE)","v":"  Написать ОПРЕДЕЛЕНИЕ из ППГ (RRS)  Подветренная и наветренная. "},{"$f":"\"        Укажите цифровые  вымпела          \"&CHAR(10)&CHAR(10)&VLOOKUP(IF(($C$4+RANDBETWEEN(1,20))<20,RANDBETWEEN(1,20),RANDBETWEEN(1,20)),Цифры!A1:C20,2,FALSE)&\" и \"&VLOOKUP(IF(($C$4+RANDBETWEEN(1,20))<20,RANDBETWEEN(1,20),RANDBETWEEN(1,20)),Цифры!A1:C20,2,FALSE)&\" и \"&VLOOKUP(IF(($C$4+RANDBETWEEN(1,20))<20,RANDBETWEEN(1,20),RANDBETWEEN(1,20)),Цифры!A1:C20,2,FALSE)","v":"        Укажите цифровые  вымпела          \n\n2 и 4 и 2"}]
[null,{"$f":"\" ВОПРОС  \"&CHAR(10)& VLOOKUP(IF(($C$4+RANDBETWEEN(1,40))<40,RANDBETWEEN(1,40),RANDBETWEEN(1,40)),Правила!D1:E40,2,FALSE)","v":" ВОПРОС  \nС какого момента яхта считается стартовавшей?"},2]
[null,{"$f":"VLOOKUP(IF(($C$4+RANDBETWEEN(1,20))<20,RANDBETWEEN(1,20),RANDBETWEEN(1,20)),Управление!A1:F20,2,FALSE)","v":" Уваливание, приведение к ветру. Перемена галса. Поворот оверштаг, фордевинд."},{"$f":"\"         Что означает этот сигнал         \"     &  CHAR(10) &           VLOOKUP(IF(($C$4+RANDBETWEEN(1,20))<20,RANDBETWEEN(1,20),RANDBETWEEN(1,20)),Сигналы!A1:C20,2,FALSE)","v":"         Что означает этот сигнал         \nY"}]
[null,{"$f":"\"           завязать узел         \"     &  CHAR(10) &           VLOOKUP(IF(($C$4+RANDBETWEEN(1,20))<20,RANDBETWEEN(1,20),RANDBETWEEN(1,20)),Узлы!A1:C20,2,FALSE)&CHAR(10)","v":"           завязать узел         \nвосьмерка\n"},"Подпишите 5 любых узлов"]
[null,{"$f":"\"Пояснить что такое  -  \"\n&  CHAR(10)\n&     VLOOKUP(IF(($C$4+RANDBETWEEN(1,20))<20,RANDBETWEEN(1,20),RANDBETWEEN(1,20)),Узлы!D1:E20,2,FALSE)\n&    CHAR(10)","v":"Пояснить что такое  -  \nЧто такое Трос ?\n"}]

{"sheet":"7","index":9,"n_rows":17,"n_cols":7,"rows_kept":17,"cut":false,"hidden":false,"merged":[[1,1,1,2],[8,1,8,2]]}
["Экзаменационные вопросы  - РУЛЕВОЙ  ПАРУСНОЙ ЯХТЫ 6 кв.м",null,null,null,3,null,5]
[null,"КВАЛИФИКАЦИОННЫЕ ТРЕБОВАНИЯ ПОДГОТОВКИ РУЛЕВЫХ И КАПИТАНОВ ПАРУСНЫХ ЯХТ"]
[null,"Экзаменатор  - Маслов А.О.",{"$f":"LIST!B3","v":" Имя    Мозолевский Антон"}]
[null,"Билет ",{"$f":"LIST!H3","v":"4"}]
[null,"Дисциплина     Личная Безопасность"]
[null,{"$f":"\"ответить на вопрос           \"     &  CHAR(10) &  CHAR(10) &          VLOOKUP(IF(($C$4+RANDBETWEEN(1,20))<20,RANDBETWEEN(1,20),RANDBETWEEN(1,20)),Безопасность!A1:C20,2,FALSE)","v":"ответить на вопрос           \n\nЧто ты можешь сделать увидев сигнал бедствия?"},{"$f":"\"            Правила Парусных Гонок        \"     &  CHAR(10) &  \"ответить на вопрос  \"&CHAR(10) &          VLOOKUP(IF(($C$4+RANDBETWEEN(1,20))<20,RANDBETWEEN(1,20),RANDBETWEEN(1,20)),Безопасность!G1:H20,2,FALSE)","v":"            Правила Парусных Гонок        \nответить на вопрос  \nПРАВИЛО   41.Посторонняя помощь ( написать текст правила)"}]
[null,{"$f":"\"            ответить на вопрос           \"     &  CHAR(10) &           VLOOKUP(IF(($C$4+RANDBETWEEN(1,20))<20,RANDBETWEEN(1,20),RANDBETWEEN(1,20)),Навигация!A1:C20,2,FALSE)","v":"            ответить на вопрос           \nПроверка яхты перед выходом на соответствие  закрепленного оборудования и снабжения."},"Подписать  - что означают эти знаки"]
[1,"Конструкция","                                       Подписать части яхты"]
[null,"СИЛЫ ДЕЙСТВУЮЩИЕ НА ПАРУСНУЮ ДОСКА - ПОДПИСАТЬ"]
[null,{"$f":"\"            ответить на вопрос           \"     &  CHAR(10) &           VLOOKUP(IF(($C$4+RANDBETWEEN(1,20))<20,RANDBETWEEN(1,20),RANDBETWEEN(1,20)),'Паруса рангойт такелаж'!A1:C20,2,FALSE)\n&  CHAR(10)&  CHAR(10)&  CHAR(10)&  CHAR(10)&  CHAR(10)\n&\"            ответить на вопрос           \"     &  CHAR(10) &          VLOOKUP(IF(($C$4+RANDBETWEEN(1,20))<20,RANDBETWEEN(1,20),RANDBETWEEN(1,20)),Конструкция!A1:C20,2,FALSE)","v":"            ответить на вопрос           \nТакелаж бегучий, перечислить основное\n\n\n\n\n            ответить на вопрос           \nУстройство Шарнира  (полумеханника, два веста фиксации,  - зачем так сделано?"},"подписать \nчасти паруса"]
[null,{"$f":"\"Практические навыки  управление яхтой. Напишите что вы делаете при:     \"     &  CHAR(10) &  CHAR(10)&           VLOOKUP(IF(($C$4+RANDBETWEEN(1,20))<20,RANDBETWEEN(1,20),RANDBETWEEN(1,20)),Практика!A1:B20,2,FALSE)","v":"Практические навыки  управление яхтой. Напишите что вы делаете при:     \n\n Отход от причала при различных направлениях ветра. Выход из гавани."},{"$f":"\"            ответить на вопрос           \"     &  CHAR(10) &           VLOOKUP(IF(($C$4+RANDBETWEEN(1,20))<20,RANDBETWEEN(1,20),RANDBETWEEN(1,20)),Управление!D1:E20,2,FALSE)","v":"            ответить на вопрос           \nЧто такое курс? Какие бывают курсы яхт?"}]
[null,{"$f":"\"            ответить на вопрос           \"     &  CHAR(10) &           VLOOKUP(IF(($C$4+RANDBETWEEN(1,20))<20,RANDBETWEEN(1,20),RANDBETWEEN(1,20)),Управление!A1:D20,2,FALSE)","v":"            ответить на вопрос           \nПолные курсы. Раскачивание яхты в поперечной плоскости и способы его уменьшения. Работа парусов, оттяжка гика. "},"подписать курсы яхты\nпо отношению к ветру"]
[null,{"$f":"\"  Написать ОПРЕДЕЛЕНИЕ из ППГ (RRS)  \"& VLOOKUP(IF(($C$4+RANDBETWEEN(1,40))<40,RANDBETWEEN(1,40),RANDBETWEEN(1,40)),Правила!A1:C40,2,FALSE)","v":"  Написать ОПРЕДЕЛЕНИЕ из ППГ (RRS)  Финиш. "},{"$f":"\"        Укажите цифровые  вымпела          \"&CHAR(10)&CHAR(10)&VLOOKUP(IF(($C$4+RANDBETWEEN(1,20))<20,RANDBETWEEN(1,20),RANDBETWEEN(1,20)),Цифры!A1:C20,2,FALSE)&\" и \"&VLOOKUP(IF(($C$4+RANDBETWEEN(1,20))<20,RANDBETWEEN(1,20),RANDBETWEEN(1,20)),Цифры!A1:C20,2,FALSE)&\" и \"&VLOOKUP(IF(($C$4+RANDBETWEEN(1,20))<20,RANDBETWEEN(1,20),RANDBETWEEN(1,20)),Цифры!A1:C20,2,FALSE)","v":"        Укажите цифровые  вымпела          \n\n1 и 2 и 2"}]
[null,{"$f":"\" ВОПРОС  \"&CHAR(10)& VLOOKUP(IF(($C$4+RANDBETWEEN(1,40))<40,RANDBETWEEN(1,40),RANDBETWEEN(1,40)),Правила!D1:E40,2,FALSE)","v":" ВОПРОС  \nС какого момента яхта считается стартовавшей?"},{"$f":"\" Поясните   Правила Расхождения \nКОГДА ЯХТЫ ВСТРЕЧАЮТСЯ \"&CHAR(10)&VLOOKUP(IF(($C$4+RANDBETWEEN(1,20))<20,RANDBETWEEN(1,20),RANDBETWEEN(1,20)),Право!A1:C20,2,FALSE)","v":" Поясните   Правила Расхождения \nКОГДА ЯХТЫ ВСТРЕЧАЮТСЯ \nПраво дороги Правило 11  НА ОДНОМ ГАЛСЕ. СВЯЗАННЫ"}]
[null,{"$f":"VLOOKUP(IF(($C$4+RANDBETWEEN(1,20))<20,RANDBETWEEN(1,20),RANDBETWEEN(1,20)),Управление!A1:F20,2,FALSE)","v":" Уваливание, приведение к ветру. Перемена галса. Поворот оверштаг, фордевинд."},{"$f":"\"         Что означает этот сигнал         \"     &  CHAR(10) &           VLOOKUP(IF(($C$4+RANDBETWEEN(1,20))<20,RANDBETWEEN(1,20),RANDBETWEEN(1,20)),Сигналы!A1:C20,2,FALSE)","v":"         Что означает этот сигнал         \nЧерный флаг"}]
[null,{"$f":"\"           завязать узел         \"     &  CHAR(10) &           VLOOKUP(IF(($C$4+RANDBETWEEN(1,20))<20,RANDBETWEEN(1,20),RANDBETWEEN(1,20)),Узлы!A1:C20,2,FALSE)&CHAR(10)","v":"           завязать узел         \nКакой узел завязывается на ходовом конце стаксель – шкотов?\n"},"Подпишите 5 любых узлов"]
[null,{"$f":"\"Пояснить что такое  -  \"\n&  CHAR(10)\n&     VLOOKUP(IF(($C$4+RANDBETWEEN(1,20))<20,RANDBETWEEN(1,20),RANDBETWEEN(1,20)),Узлы!D1:E20,2,FALSE)\n&    CHAR(10)","v":"Пояснить что такое  -  \nЧто такое Коренной конец ?\n"}]

{"sheet":"8","index":10,"n_rows":17,"n_cols":7,"rows_kept":17,"cut":false,"hidden":false,"merged":[[1,1,1,2]]}
["Экзаменационные вопросы  - РУЛЕВОЙ  ПАРУСНОЙ ЯХТЫ 6 кв.м",null,{"$f":"'7'!C1=LIST!H1","v":false},null,7,null,9]
[null,"КВАЛИФИКАЦИОННЫЕ ТРЕБОВАНИЯ ПОДГОТОВКИ РУЛЕВЫХ И КАПИТАНОВ ПАРУСНЫХ ЯХТ"]
[null,"Экзаменатор  - Маслов А.О.",{"$f":"LIST!B3","v":" Имя    Мозолевский Антон"}]
[null,"Билет ",{"$f":"LIST!H3","v":"4"}]
[null,"Дисциплина     Личная Безопасность",{"$f":"LIST!H3","v":"4"}]
[null,{"$f":"\"ответить на вопрос           \"     &  CHAR(10) &  CHAR(10) &          VLOOKUP(IF(($C$4+RANDBETWEEN(1,20))<20,RANDBETWEEN(1,20),RANDBETWEEN(1,20)),Безопасность!A1:C20,2,FALSE)","v":"ответить на вопрос           \n\nЧто вы будете делать при усилении ветра до штормового."},{"$f":"\"            Правила Парусных Гонок        \"     &  CHAR(10) &  \"ответить на вопрос  \"&CHAR(10) &          VLOOKUP(IF(($C$4+RANDBETWEEN(1,20))<20,RANDBETWEEN(1,20),RANDBETWEEN(1,20)),Безопасность!G1:H20,2,FALSE)","v":"            Правила Парусных Гонок        \nответить на вопрос  \nWORLD SAILING.  СПЕЦИАЛЬНЫЕ ПРАВИЛА ДЛЯ  ГОНОК\n       Условия для прибрежных гонок малых яхт предназначены для гонок, когда:\n- 1\n- 2\n- 3\n- 4\n- 5"}]
[null,{"$f":"\"            ответить на вопрос           \"     &  CHAR(10) &           VLOOKUP(IF(($C$4+RANDBETWEEN(1,20))<20,RANDBETWEEN(1,20),RANDBETWEEN(1,20)),Навигация!A1:C20,2,FALSE)","v":"            ответить на вопрос           \nдля чего бакены покрашены в разный цвет"},"Подписать  - что означают эти знаки"]
[1,"Конструкция"]
[null,"ВОДОИЗМЕЩАЮЩИЙ \nИ ГЛИССИРУЮЩИЙ РЕЖИМЫ - пояснить","Подписать части яхты"]
[null,{"$f":"\"            ответить на вопрос           \"     &  CHAR(10) &           VLOOKUP(IF(($C$4+RANDBETWEEN(1,20))<20,RANDBETWEEN(1,20),RANDBETWEEN(1,20)),'Паруса рангойт такелаж'!A1:C20,2,FALSE)\n&  CHAR(10)&  CHAR(10)&  CHAR(10)&  CHAR(10)&  CHAR(10)\n&\"            ответить на вопрос           \"     &  CHAR(10) &          VLOOKUP(IF(($C$4+RANDBETWEEN(1,20))<20,RANDBETWEEN(1,20),RANDBETWEEN(1,20)),Конструкция!A1:C20,2,FALSE)","v":"            ответить на вопрос           \nУглы: фаловый, галсовый, шкотовый; нок-бензельный (боуты, фаловые дощечки); \n\n\n\n\n            ответить на вопрос           \nУстройство Латы 6 шт. одна трубчатая. Две латы с упорами (камбер). Натяжитель-лата-лепесток-упор."}]
[null,"&  СИМВОЛ(10)&  СИМВОЛ(10)&  СИМВОЛ(10)&  СИМВОЛ(10)&  СИМВОЛ(10)",{"$f":"\"            ответить на вопрос           \"     &  CHAR(10) &           VLOOKUP(IF(($C$4+RANDBETWEEN(1,20))<20,RANDBETWEEN(1,20),RANDBETWEEN(1,20)),Управление!D1:E20,2,FALSE)","v":"            ответить на вопрос           \nЧто такое поворот?"}]
[null,"&\"            ответить на вопрос           \"     &  СИМВОЛ(10) &          ВПР(ЕСЛИ(($C$4+СЛУЧМЕЖДУ(1;20))<20;СЛУЧМЕЖДУ(1;20);СЛУЧМЕЖДУ(1;20));Конструкция!A1:C20;2;ЛОЖЬ)","подписать курсы яхты\nпо отношению к ветру"]
[null,{"$f":"\"  Написать ОПРЕДЕЛЕНИЕ из ППГ (RRS)  \"& VLOOKUP(IF(($C$4+RANDBETWEEN(1,40))<40,RANDBETWEEN(1,40),RANDBETWEEN(1,40)),Правила!A1:C40,2,FALSE)","v":"  Написать ОПРЕДЕЛЕНИЕ из ППГ (RRS)  Надлежащий курс. "},4]
[null,{"$f":"\" ВОПРОС  \"&CHAR(10)& VLOOKUP(IF(($C$4+RANDBETWEEN(1,40))<40,RANDBETWEEN(1,40),RANDBETWEEN(1,40)),Правила!D1:E40,2,FALSE)","v":" ВОПРОС  \nЯхта В обязана уступить дорогу ?  на одном галсе , чисто впереди-чисто позади"},{"$f":"\" Поясните   Правила Расхождения \nКОГДА ЯХТЫ ВСТРЕЧАЮТСЯ \"&CHAR(10)&VLOOKUP(IF(($C$4+RANDBETWEEN(1,20))<20,RANDBETWEEN(1,20),RANDBETWEEN(1,20)),Право!A1:C20,2,FALSE)","v":" Поясните   Правила Расхождения \nКОГДА ЯХТЫ ВСТРЕЧАЮТСЯ \nПраво дороги Правило 12  НА ОДНОМ ГАЛСЕ.  НЕ СВЯЗАННЫ"}]
[null,{"$f":"VLOOKUP(IF(($C$4+RANDBETWEEN(1,20))<20,RANDBETWEEN(1,20),RANDBETWEEN(1,20)),Управление!A1:F20,2,FALSE)","v":"Выбор пути на курсе фордевинд в слабый и средний ветер. Влияние рядом идущих яхт."},{"$f":"\"         Что означает этот сигнал         \"     &  CHAR(10) &           VLOOKUP(IF(($C$4+RANDBETWEEN(1,20))<20,RANDBETWEEN(1,20),RANDBETWEEN(1,20)),Сигналы!A1:C20,2,FALSE)","v":"         Что означает этот сигнал         \nЧерный флаг"}]
[null,{"$f":"\"           завязать узел         \"\n&  CHAR(10) &  CHAR(10)\n&           VLOOKUP(IF(($C$4+RANDBETWEEN(1,20))<20,RANDBETWEEN(1,20),RANDBETWEEN(1,20)),Узлы!A1:C20,2,FALSE)&CHAR(10)","v":"           завязать узел         \n\nвосьмерка\n"},"Подпишите 5 любых узлов"]
[null,{"$f":"\"Пояснить что такое  -  \"\n&CHAR(10)\n&     VLOOKUP(IF(($C$4+RANDBETWEEN(1,20))<20,RANDBETWEEN(1,20),RANDBETWEEN(1,20)),Узлы!D1:E20,2,FALSE)","v":"Пояснить что такое  -  \nЧто такое Гардаман ?"}]

{"sheet":"9","index":11,"n_rows":17,"n_cols":7,"rows_kept":17,"cut":false,"hidden":false,"merged":[[1,1,1,2],[8,1,8,2]]}
["Экзаменационные вопросы  - РУЛЕВОЙ  ПАРУСНОЙ ЯХТЫ 6 кв.м",null,{"$f":"LIST!H1","v":"2018-08-18"},null,3,null,5]
[null,"КВАЛИФИКАЦИОННЫЕ ТРЕБОВАНИЯ ПОДГОТОВКИ РУЛЕВЫХ И КАПИТАНОВ ПАРУСНЫХ ЯХТ"]
[null,"Экзаменатор  - Маслов А.О.",{"$f":"LIST!B3","v":" Имя    Мозолевский Антон"}]
[null,"Билет ",{"$f":"LIST!H3","v":"4"}]
[null,"Дисциплина     Личная Безопасность"]
[null,{"$f":"\"ответить на вопрос           \"     &  CHAR(10) &  CHAR(10) &          VLOOKUP(IF(($C$4+RANDBETWEEN(1,20))<20,RANDBETWEEN(1,20),RANDBETWEEN(1,20)),Безопасность!A1:C20,2,FALSE)","v":"ответить на вопрос           \n\nЧто вы будете делать при усилении ветра до штормового."},{"$f":"\"            Правила Парусных Гонок        \"     &  CHAR(10) &  \"ответить на вопрос  \"&CHAR(10) &          VLOOKUP(IF(($C$4+RANDBETWEEN(1,20))<20,RANDBETWEEN(1,20),RANDBETWEEN(1,20)),Безопасность!G1:H20,2,FALSE)","v":"            Правила Парусных Гонок        \nответить на вопрос  \nПРАВИЛО      2  ЧЕСТНАЯ СПОРТИВНАЯ БОРЬБА ( написать текст правила)"}]
[null,{"$f":"\"            ответить на вопрос           \"     &  CHAR(10) &           VLOOKUP(IF(($C$4+RANDBETWEEN(1,20))<20,RANDBETWEEN(1,20),RANDBETWEEN(1,20)),Навигация!A1:C20,2,FALSE)","v":"            ответить на вопрос           \nРайоны плавания. Разрешенные акватории тренировок для вашей яхты"},"Подписать  - что означают эти знаки"]
[1,"Конструкция","                                       Подписать части яхты"]
[null,"ПОДПИСАТЬ ЧАСТИ ВИНДСЕРФИНГА                  ПОДПИСАТЬ СИЛЫ ДЕЙСТВУЮЩИЕ НА ПАРУСНУЮ ДОСКУ\n"]
[null,{"$f":"\"            ответить на вопрос           \"     &  CHAR(10) &           VLOOKUP(IF(($C$4+RANDBETWEEN(1,20))<20,RANDBETWEEN(1,20),RANDBETWEEN(1,20)),'Паруса рангойт такелаж'!A1:C20,2,FALSE)\n&  CHAR(10)&  CHAR(10)&  CHAR(10)&  CHAR(10)&  CHAR(10)\n&\"            ответить на вопрос           \"     &  CHAR(10) &          VLOOKUP(IF(($C$4+RANDBETWEEN(1,20))<20,RANDBETWEEN(1,20),RANDBETWEEN(1,20)),Конструкция!A1:C20,2,FALSE)","v":"            ответить на вопрос           \nКак называется усиление паруса на его углах, выполненное за счет дополнительных слоев ткани?\n\n\n\n\n            ответить на вопрос           \nУстройство Ползун степса мачты – 3 положения"},"подписать \nчасти паруса"]
[null,{"$f":"\"Практические навыки  управление яхтой. Напишите что вы делаете при:     \"     &  CHAR(10) &  CHAR(10)&           VLOOKUP(IF(($C$4+RANDBETWEEN(1,20))<20,RANDBETWEEN(1,20),RANDBETWEEN(1,20)),Практика!A1:B20,2,FALSE)","v":"Практические навыки  управление яхтой. Напишите что вы делаете при:     \n\nУмение определять усиления ветра визуальными средствами."},{"$f":"\"            ответить на вопрос           \"     &  CHAR(10) &           VLOOKUP(IF(($C$4+RANDBETWEEN(1,20))<20,RANDBETWEEN(1,20),RANDBETWEEN(1,20)),Управление!D1:E20,2,FALSE)","v":"            ответить на вопрос           \nЧто такое увалиться?"}]
[null,{"$f":"\"            ответить на вопрос           \"     &  CHAR(10) &           VLOOKUP(IF(($C$4+RANDBETWEEN(1,20))<20,RANDBETWEEN(1,20),RANDBETWEEN(1,20)),Управление!A1:D20,2,FALSE)","v":"            ответить на вопрос           \nПолные курсы. Раскачивание яхты в поперечной плоскости и способы его уменьшения. Работа парусов, оттяжка гика. "},"подписать курсы яхты\nпо отношению к ветру"]
[null,{"$f":"\"  Написать ОПРЕДЕЛЕНИЕ из ППГ (RRS)  \"& VLOOKUP(IF(($C$4+RANDBETWEEN(1,40))<40,RANDBETWEEN(1,40),RANDBETWEEN(1,40)),Правила!A1:C40,2,FALSE)","v":"  Написать ОПРЕДЕЛЕНИЕ из ППГ (RRS)  Старт. "},{"$f":"\"        Укажите цифровые  вымпела          \"&CHAR(10)&CHAR(10)&VLOOKUP(IF(($C$4+RANDBETWEEN(1,20))<20,RANDBETWEEN(1,20),RANDBETWEEN(1,20)),Цифры!A1:C20,2,FALSE)&\" и \"&VLOOKUP(IF(($C$4+RANDBETWEEN(1,20))<20,RANDBETWEEN(1,20),RANDBETWEEN(1,20)),Цифры!A1:C20,2,FALSE)&\" и \"&VLOOKUP(IF(($C$4+RANDBETWEEN(1,20))<20,RANDBETWEEN(1,20),RANDBETWEEN(1,20)),Цифры!A1:C20,2,FALSE)","v":"        Укажите цифровые  вымпела          \n\n4 и 6 и 2"}]
[null,{"$f":"\" ВОПРОС  \"&CHAR(10)& VLOOKUP(IF(($C$4+RANDBETWEEN(1,40))<40,RANDBETWEEN(1,40),RANDBETWEEN(1,40)),Правила!D1:E40,2,FALSE)","v":" ВОПРОС  \nВ каких случаях старт гонка может быть прекращена?"},{"$f":"\" Поясните   Правила Расхождения \nКОГДА ЯХТЫ ВСТРЕЧАЮТСЯ \"&CHAR(10)&VLOOKUP(IF(($C$4+RANDBETWEEN(1,20))<20,RANDBETWEEN(1,20),RANDBETWEEN(1,20)),Право!A1:C20,2,FALSE)","v":" Поясните   Правила Расхождения \nКОГДА ЯХТЫ ВСТРЕЧАЮТСЯ \nПраво дороги Правило 10  НА ПРОТИВОПОЛОЖНЫХ ГАЛСАХ "}]
[null,{"$f":"VLOOKUP(IF(($C$4+RANDBETWEEN(1,20))<20,RANDBETWEEN(1,20),RANDBETWEEN(1,20)),Управление!A1:F20,2,FALSE)","v":"Выбор пути на курсе фордевинд в слабый и средний ветер. Влияние рядом идущих яхт."},{"$f":"\"         Что означает этот сигнал         \"     &  CHAR(10) &           VLOOKUP(IF(($C$4+RANDBETWEEN(1,20))<20,RANDBETWEEN(1,20),RANDBETWEEN(1,20)),Сигналы!A1:C20,2,FALSE)","v":"         Что означает этот сигнал         \nЧерный флаг"}]
[null,{"$f":"\"           завязать узел         \"     &  CHAR(10) &           VLOOKUP(IF(($C$4+RANDBETWEEN(1,20))<20,RANDBETWEEN(1,20),RANDBETWEEN(1,20)),Узлы!A1:C20,2,FALSE)&CHAR(10)","v":"           завязать узел         \nПрямой\n"},"Подпишите 5 любых узлов"]
[null,{"$f":"\"Пояснить что такое  -  \"\n&  CHAR(10)\n&     VLOOKUP(IF(($C$4+RANDBETWEEN(1,20))<20,RANDBETWEEN(1,20),RANDBETWEEN(1,20)),Узлы!D1:E20,2,FALSE)\n&    CHAR(10)","v":"Пояснить что такое  -  \nЧто такое Гардаман ?\n"}]

{"sheet":"Безопасность","index":12,"n_rows":24,"n_cols":8,"rows_kept":24,"cut":false,"hidden":false,"merged":[]}
[1,"Какие действия следует предпринять, если видишь сигнал бедствия.",null,null,1,"Если два парусных судна идут курсами, пересекающимися таким образом, что может возникнуть опасность столкновения, то: \n- 1.\n- 2.\n- 3.",1,"ПРАВИЛО  1    1.1 Помощь находящимся в опасности  ( написать текст правила)"]
[2,"Что ты можешь сделать увидев сигнал бедствия?",null,null,2,"Парусные суда должны пересекать судовой ход под углом -…......?",2,"ПРАВИЛО  1   1.2 Спасательные принадлежности и индивидуальные средства обеспечения плавучести ( написать текст правила)"]
[3,"Что ты сделаешь если объявлена спасательная операция.",null,null,3,"Парусные суда  должны выполнять оборот, связанный с пересечением судового хода, таким образом, чтобы ",3,"ПРАВИЛО      2  ЧЕСТНАЯ СПОРТИВНАЯ БОРЬБА ( написать текст правила)"]
[4,"Какие виды помощи существуют",null,null,4,"Парусные суда должны пересекать судовой ход под углом -…......?",4,"ПРАВИЛО    3    РЕШЕНИЕ УЧАСТВОВАТЬ В ГОНКЕ ( написать текст правила)"]
[5,"Маневрирование вблизи тонущего судна\n;Буксировка и движение на буксире. ",null,null,5,"Парусные суда  должны выполнять оборот, связанный с пересечением судового хода, таким образом, чтобы ",5,"ПРАВИЛО   37 ИНСТРУКЦИИ ПО ПОИСКУ И СПАСЕНИЮ ( написать текст правила)"]
[6,"Индивидуальные сигнальные устройства",null,null,6,null,6,"ПРАВИЛО   40.Индивидуальные средства обеспечения плавучести ( написать текст правила)"]
[7,"Предотвращение выпадения человек за борт",null,null,7,null,7,"ПРАВИЛО   41.Посторонняя помощь ( написать текст правила)"]
[8,"Какие могут возникнуть сложности при спасении «человека за бортом»; ",null,null,8,"Парусному судну запрещается: \n- 1.\n- 2.\n- 3.",8,"ПРАВИЛО 55  .Выбрасывание мусора"]
[9,"Что ты будешь делать если ты оказался в воде.",null,null,9,"Если два парусных судна следуют курсами, пересекающимися таким образом, что может возникнуть опасность столкновения, то:\n-1.\n-2.",9,"WORLD SAILING.  СПЕЦИАЛЬНЫЕ ПРАВИЛА ДЛЯ  ГОНОК\n       Условия для прибрежных гонок малых яхт предназначены для гонок, когда:\n- 1\n- 2\n- 3\n- 4\n- 5"]
[10,"Как подойти к человеку оказавшемуся за бортом",null,null,10,"Если два парусных судна идут курсами, пересекающимися таким образом, что может возникнуть опасность столкновения, то: \n- 1.\n- 2.\n- 3.",10,"WORLD SAILING.  СПЕЦИАЛЬНЫЕ ПРАВИЛА ДЛЯ  ГОНОК\n Переносное оборудование должно быть в наличии на яхте в гонке:\n-1\n- 2\n- 3\n-4\n- 5\n- 6"]
[11,"В чем опасность близости судна к человеку за бортом; ",null,null,11,"Парусные суда должны пересекать судовой ход под углом -…......?",11,"Какие местные правила плавания для вашей акватории вы знаете ?"]
[12,"Какие существуют способы подъема человека из воды.",null,null,12,"Парусные суда  должны выполнять оборот, связанный с пересечением судового хода, таким образом, чтобы ",12,"Правила безопасности на яхте"]
[13,"Что вы будете делать при усилении ветра до штормового.",null,null,13,"WORLD SAILING.  СПЕЦИАЛЬНЫЕ ПРАВИЛА ДЛЯ  ГОНОК\n       Условия для прибрежных гонок малых яхт предназначены для гонок, когда:\n- 1\n- 2\n- 3\n- 4\n- 5",13,"Проверка яхты перед выходом на соответствие правилам класса"]
[14,"Уменьшение площади парусов; ",null,null,14,"WORLD SAILING.  СПЕЦИАЛЬНЫЕ ПРАВИЛА ДЛЯ  ГОНОК\n Переносное оборудование должно быть в наличии на яхте в гонке:\n-1\n- 2\n- 3\n-4\n- 5\n- 6",14,"Проверка яхты перед выходом на соответствие  закрепленного оборудования и снабжения."]
[15,"Как подавать сигналы бедствия",null,null,15,null,15,"Перечислите что  запрещается парусному судну: \n- 1.\n- 2.\n- 3."]
[16,"Сигнализация «человек за бортом»; ",null,null,16,"WORLD SAILING.  СПЕЦИАЛЬНЫЕ ПРАВИЛА ДЛЯ  ГОНОК\n Переносное оборудование должно быть в наличии на яхте в гонке:\n-1\n- 2\n- 3\n-4\n- 5\n- 6",16,"Если два парусных судна следуют курсами, пересекающимися таким образом, что может возникнуть опасность столкновения, то:\n-1.\n-2."]
[17,"Реагирование на сигналы бедствия; ",null,null,17,"WORLD SAILING.  СПЕЦИАЛЬНЫЕ ПРАВИЛА ДЛЯ  ГОНОК\n       Условия для прибрежных гонок малых яхт предназначены для гонок, когда:\n- 1\n- 2\n- 3\n- 4\n- 5",17,"Если два парусных судна идут курсами, пересекающимися таким образом, что может возникнуть опасность столкновения, то: \n- 1.\n- 2.\n- 3."]
[18,"Каким жестом вы можете  отказаться от помощи",null,null,18,"WORLD SAILING.  СПЕЦИАЛЬНЫЕ ПРАВИЛА ДЛЯ  ГОНОК\n Переносное оборудование должно быть в наличии на яхте в гонке:\n-1\n- 2\n- 3\n-4\n- 5\n- 6",18,"Парусные суда должны пересекать судовой ход под углом -…......?"]
[19,"Поиск убежища в условиях открытого моря ",null,null,19,"Если два парусных судна идут курсами, пересекающимися таким образом, что может возникнуть опасность столкновения, то: \n- 1.\n- 2.\n- 3.",19,"Парусные суда  должны выполнять оборот, связанный с пересечением судового хода, таким образом, чтобы "]
[20,"Поиск убежища  на закрытых водоёмах ",null,null,20,"Если два парусных судна идут курсами, пересекающимися таким образом, что может возникнуть опасность столкновения, то: \n- 1.\n- 2.\n- 3.",20,"6 -я КАТЕГОРИЯ ГОНОК.  Что это такое? Главные особенности  (WORLD SAILING.  СПЕЦИАЛЬНЫЕ ПРАВИЛА ДЛЯ  ГОНОК)"]
[21,"Правила безопасности на яхте"]
[22,"Проверка яхты перед выходом на соответствие правилам класса"]
[23,"Проверка яхты перед выходом на соответствие  закрепленного оборудования и снабжения."]
[24,"Помощь  находящимся в опасности"]

{"sheet":"Навигация","index":13,"n_rows":30,"n_cols":16,"rows_kept":30,"cut":false,"hidden":false,"merged":[]}
[1,"Перечислите районы плавания разрешенные  для вашей яхты"]
[2,"Что такое Судовой ход"]
[3,"Как обозначен  судовой ход  на акватории"]
[4,"В каких местах разрешено пересекать  судовой ход"]
[5,"для чего бакены покрашены в разный цвет"]
[6,"Правила безопасности на яхте"]
[7,"Проверка яхты перед выходом на соответствие правилам класса"]
[8,"Проверка яхты перед выходом на соответствие  закрепленного оборудования и снабжения."]
[9,"Помощь  находящимся в опасности"]
[10,"Районы плавания. Разрешенные акватории тренировок для вашей яхты"]
[11,"Что означает  Судовой ход"]
[12,"Как обозначен  судовой ход  на акватории"]
[13,"В каких местах разрешено пересекать  судовой ход"]
[14,"для чего бакены покрашены в разный цвет"]
[15,"Районы плавания. Разрешенные акватории тренировок для вашей яхты"]
[16,"Что означает  Судовой ход"]
[17,"Как обозначен  судовой ход  на акватории"]
[18,"В каких местах разрешено пересекать  судовой ход"]
[19,"для чего бакены покрашены в разный цвет"]
[20,"Районы плавания. Разрешенные акватории тренировок для вашей яхты"]
[]
[]
[]
[]
[]
[]
[]
[]
[]
[null,null,null,null,null,null,null,null,null,null,null,null,null,null,null,"Навигация"]

{"sheet":"Конструкция","index":14,"n_rows":41,"n_cols":2,"rows_kept":41,"cut":false,"hidden":false,"merged":[]}
[1,"Устройство Швертового  колодеца, -Шверт, -Коробка, -фиксатор,-пружины, -шторки, -направляющие шторок, -фиксатор шторок"]
[2,"Устройство  Плавник 46 сантиметров,  Техно+ 50 см? Системы крепления плавника Trim Box, Diip Tattl Box/"]
[3,"Устройство  Ножные петли."]
[4,"Устройство Ползун степса мачты – 3 положения"]
[5,"Устройство Шарнира  (полумеханника, два веста фиксации,  - зачем так сделано?"]
[6,"Устройство Боута. Топовй с грибком, шкотовый два люверса, галсовый с тремя роликами  скольжения"]
[7,"Устройство Латы 6 шт. одна трубчатая. Две латы с упорами (камбер). Натяжитель-лата-лепесток-упор."]
[8,"Устройство Мачт карман"]
[9,"Рангоут, такелаж. Устройство и назначение элементов, Мачты СДМ 430, 460, 490 сколько угля в %?  Удлинитель 40см с двумя роликами и стопором, Гик с удлинителем 205-265, щелевыми стопорам 4-8 мм, Передняя оковка с клипсой шкотиком, Задняя оковка с тремя роликами и стопором"]
[10,"Рангоут, такелаж. Устройство и назначение элементов:  Старт шкот, Шкотовая летучка, усилие х 8 раз, без учета трения, Галсовая летучка, собрана на двух лонг-такельных двух шкивных двух обушковых блоках с щелевыми стопорами. Усилие на шкоте увеличивается, если я правильно посчитал, в 24 раза, "]
[11,"Виды Парусов и плавников"]
[12,"Устройство Швертового  колодеца, -Шверт, -Коробка, -фиксатор,-пружины, -шторки, -направляющие шторок, -фиксатор шторок"]
[13,"Устройство  Плавник 46 сантиметров,  Техно+ 50 см? Системы крепления плавника Trim Box, Diip Tattl Box/"]
[14,"Устройство  Ножные петли."]
[15,"Устройство Ползун степса мачты – 3 положения"]
[16,"Устройство Шарнира  (полумеханника, два веста фиксации,  - зачем так сделано?"]
[17,"Устройство Боута. Топовй с грибком, шкотовый два люверса, галсовый с тремя роликами  скольжения"]
[18,"Устройство Латы 6 шт. одна трубчатая. Две латы с упорами (камбер). Натяжитель-лата-лепесток-упор."]
[19,"Устройство Мачт карман"]
[20,"Рангоут, такелаж. Устройство и назначение элементов, Мачты СДМ 430, 460, 490 сколько угля в %?  Удлинитель 40см с двумя роликами и стопором, Гик с удлинителем 205-265, щелевыми стопорам 4-8 мм, Передняя оковка с клипсой шкотиком, Задняя оковка с тремя роликами и стопором"]
[21,"Рангоут, такелаж. Устройство и назначение элементов:  Старт шкот, Шкотовая летучка, усилие х 8 раз, без учета трения, Галсовая летучка, собрана на двух лонг-такельных двух шкивных двух обушковых блоках с щелевыми стопорами. Усилие на шкоте увеличивается, если я правильно посчитал, в 24 раза, "]
[22,"Виды Парусов и плавников"]
[23,"Устройство Швертового  колодеца, -Шверт, -Коробка, -фиксатор,-пружины, -шторки, -направляющие шторок, -фиксатор шторок"]
[24,"Устройство  Плавник 46 сантиметров,  Техно+ 50 см? Системы крепления плавника Trim Box, Diip Tattl Box/"]
[25,"Устройство  Ножные петли."]
[26,"Устройство Ползун степса мачты – 3 положения"]
[27,"Устройство Шарнира  (полумеханника, два веста фиксации,  - зачем так сделано?"]
[28,"Устройство Боута. Топовй с грибком, шкотовый два люверса, галсовый с тремя роликами  скольжения"]
[29,"Устройство Латы 6 шт. одна трубчатая. Две латы с упорами (камбер). Натяжитель-лата-лепесток-упор."]
[30,"Устройство Мачт карман"]
[31,"Рангоут, такелаж. Устройство и назначение элементов, Мачты СДМ 430, 460, 490 сколько угля в %?  Удлинитель 40см с двумя роликами и стопором, Гик с удлинителем 205-265, щелевыми стопорам 4-8 мм, Передняя оковка с клипсой шкотиком, Задняя оковка с тремя роликами и стопором"]
[32,"Рангоут, такелаж. Устройство и назначение элементов:  Старт шкот, Шкотовая летучка, усилие х 8 раз, без учета трения, Галсовая летучка, собрана на двух лонг-такельных двух шкивных двух обушковых блоках с щелевыми стопорами. Усилие на шкоте увеличивается, если я правильно посчитал, в 24 раза, "]
[33,"Виды Парусов и плавников"]
[34]
[35]
[36]
[37]
[38]
[39]
[40]
[41]

{"sheet":"Паруса рангойт такелаж","index":15,"n_rows":25,"n_cols":2,"rows_kept":25,"cut":false,"hidden":false,"merged":[]}
[1,"Паруса. Треугольные и четырехугольные паруса. ( названия) "]
[2,"Материал паруса ( тканные и нетканные)"]
[3,"Углы: фаловый, галсовый, шкотовый; нок-бензельный (боуты, фаловые дощечки); "]
[4,"Назовите шкаторины паруса, способы удержания задней шкаторины"]
[5,"Способы крепления парусов"]
[6,"Настройка паруса на различные ветровые условия"]
[7,"Как называется горизонтальная балка – часть рангоута, к которой прикрепляется нижняя шкаторина большого паруса – грота."]
[8,"Что такое фал? Грота фал? Стаксель фал?"]
[9,"Для чего нужны гика - шкоты? Для чего нужен грота – шкот?"]
[10,"Как называется передний парус в парусном вооружении «Шлюп», парусной яхты."]
[11,"Назовите углы грота"]
[12,"Такелаж стоячий, перечислить основное"]
[13,"Такелаж бегучий, перечислить основное"]
[14,"Как называется верхний конец мачты?"]
[15,"Как называется нижний конец мачты?"]
[16,"Как называется кормовой конец гика?"]
[17,"Как называется носовой конец гика?"]
[18,"Как называется усиление паруса на его углах, выполненное за счет дополнительных слоев ткани?"]
[19,"Как называется снасть бегучего такелажа, служащую для подъема паруса?"]
[20,"Как называется снасть бегучего такелажа, служащую для управления парусом?"]
[21,"Называется снасть бегучего такелажа, которая служит для подъема паруса, называется"]
[22,"Назовите шкаторины паруса, способы удержания задней шкаторины"]
[23,"Способы крепления парусов"]
[24,"Настройка паруса на различные ветровые условия"]
[25]

{"sheet":"Управление","index":16,"n_rows":27,"n_cols":5,"rows_kept":27,"cut":false,"hidden":false,"merged":[]}
[1,"Курсы яхты: курс относительно ветра. ",null,1,"Что такое курс? Какие бывают курсы яхт?"]
[2,"Острые курсы: бейдевинд крутой и полный; галфвинд. Полные курсы: бакштаг острый и полный, фордевинд. Положение левентик.",null,2,"Что такое галс? Какие бывают галсы?"]
[3,"Дрейф. , дрейфовать.",null,3,"Какие курсы называются «Полные курсы», а какие «Острые курсы»?"]
[4,"Подветренная и наветренная стороны яхты. Положения на ветру, под ветром. Прямо по носу, прямо по корме, впереди с наветра (подветра), сзади с наветра (подветра), на траверзе с наветра (подветра).",null,4,"Что такое поворот?"]
[5," Уваливание, приведение к ветру. Перемена галса. Поворот оверштаг, фордевинд.",null,5,"Что такое поворот оверштаг?"]
[6,"Термины. Слабина, выбрать (подобрать), выбрать в тугую (обтянуть), травить (потравить), заложить, закрепить, отдать (отдать якорь), раздёрнуть.",null,6,"Что такое поворот фордевинд?"]
[7,"Настройка парусов",null,7,"Что такое увалиться?"]
[8,"Лавировка  на волне.  Работа парусов",null,8,"Что такое привестись?"]
[9,"Лавировка в сильный ветер. Работа парусов",null,9,"Что такое правый галс?"]
[10,"Острые курсы: бейдевинд крутой и полный; галфвинд. Полные курсы: бакштаг острый и полный, фордевинд. Положение левентик.",null,10,"10. Что такое левый галс?"]
[11,"Работа на порывах ветра.",null,11,"Что такое лавировка?"]
[12,"Поворот овершта. Составные части поворота. Основные ошибки и их исправления.",null,12,"Особенности управления яхтой на лавировке?"]
[13,"Влияние других яхт на скорость яхты на лавировке. Термины впереди, на ветру, под ветром, позади.",null,13,"Особенности управления яхтой на полном курсе?"]
[14,"Полные курсы. Дополнительные паруса. Спинакер, его установка и работа на разных курсах, и при разной силе ветра.",null,14,"Способы выхода из левентика?"]
[15,"Полные курсы. Раскачивание яхты в поперечной плоскости и способы его уменьшения. Работа парусов, оттяжка гика. ",null,15,"Что такое ветер?"]
[16,"Полные курсы. Крен, псадка яхтсмена и продольный дифферент.",null,16,"Что такое течение?"]
[17,"Полные курсы. Использование попутных волн, волнового течения.",null,17,"Что такое крен? Его влияние на скорость"]
[18,"Выбор пути на курсе фордевинд в слабый и средний ветер. Влияние рядом идущих яхт.",null,18,"Что такое Диаметральная Плоскость?"]
[19,"Полные курсы. Поворот фордевинд в слабый, сильный ветер, на волне. ",null,19,"Что такое деферент?"]
[20,"Брочинг.",null,20,"Что такое лейнлайн?"]
[null,null,null,null,"21.Истинный и вымпельный ветер"]
[null,null,null,null,"22.Что такое дрейф? Причины дрейфа?"]
[null,null,null,null,"23.Скалинг?"]
[null,null,null,null,"24.Пампинг?"]
[null,null,null,null,"25.Рокинг?"]
[null,null,null,null,"26.Учинг?"]
[null,null,null,null,"27.Бодипампинг?"]

{"sheet":"Узлы","index":17,"n_rows":20,"n_cols":7,"rows_kept":20,"cut":false,"hidden":false,"merged":[]}
[1,"Прямой",null,1,{"$f":"\"Что такое \" &F1&\" ?\"","v":"Что такое Бухта троса ?"},"Бухта троса","Бухта - упаковка нового троса в форме полого цилиндра; трос или снасть, свернутая кругами, восьмеркой или свободными шлагами."]
[2,"восьмерка",null,2,{"$f":"\"Что такое \" &F2&\" ?\"","v":"Что такое Ворса  ?"},"Ворса ","Ворса - куски старых расплетенных пеньковых или любых других растительных тросов."]
[3,"Рыбацкий штык",null,3,"Что такое Вырубить  ?","Вырубить ","Вырубить - отрезать от бухты кусок троса."]
[4,"Буксирный",null,4,"Что такое Калышка  ?","Калышка ","Калышка - случайный, вредный завиток на тросе или снасти, возникающий от перекручивания."]
[5,"Беседочный",null,5,"Что такое Колышка  ?","Колышка ","Колышка - петля на тросе, являющаяся частью узла."]
[6,"Какой узел завязывается на ходовом конце стаксель – шкотов?",null,6,"Что такое Конец  ?","Конец ","Конец - кусок троса, вырубленный из бухты."]
[7,"восьмерка",null,7,"Что такое Коренной конец ?","Коренной конец","Коренной конец - закрепленный конец троса."]
[8,"Рыбацкий штык",null,8,"Что такое Стропка  ?","Стропка ","Стропка - петля, сделанная из тонкого троса, на блоке или ручке какого-либо инструмента."]
[9,"Буксирный",null,9,"Что такое Схватка  ?","Схватка ","Схватка - временное крепление ворсой или штертом двух"]
[10,"Беседочный",null,10,"Что такое Трос ?","Трос","Трос - специальной выделки веревка."]
[11,"прямой, ",null,11,"Что такое Ходовой конец  ?","Ходовой конец ","Ходовой конец - конец троса, находящийся в руках."]
[12,"восьмерка",null,12,"Что такое Шлаг  ?","Шлаг ","Шлаг - оборот троса или снасти вокруг чего-либо; свободная петля троса."]
[13,"Рыбацкий штык",null,13,"Что такое Штерт ?","Штерт","Штерт, кончик - короткий конец тонкого троса (линя)."]
[14,"Буксирный",null,14,"Что такое Свайка ?","Свайка"]
[15,"Беседочный",null,15,"Что такое Гардаман ?","Гардаман"]
[16,"прямой, ",null,16,"Что такое Парусная игла ?","Парусная игла"]
[17,"восьмерка",null,17,"Что такое Шкот ?","Шкот"]
[18,"Рыбацкий штык",null,18,"Что такое Фал ?","Фал"]
[19,"Буксирный",null,19,"Что такое оттяжка ?","оттяжка"]
[20,"Беседочный",null,20,"Что такое Гардаман ?","Гардаман"]

{"sheet":"Теория","index":18,"n_rows":20,"n_cols":2,"rows_kept":20,"cut":false,"hidden":false,"merged":[]}
[1,"Инерция яхты, плавучесть, остойчивость (поперечная и продольная) швертботов и килевых яхт. "]
[2,"Приближённая величина допустимого и относительного крена для яхт различных типов. "]
[3,"Причина опрокидывания яхт на разных курсах. "]
[4,"Дифферент. "]
[5,"Устойчивость на курсе, поворотливость, маневренность (управляемость)."]
[6,"Действие руля при переднем и заднем ходе."]
[7," Гидродинамическая сила, её положение в зависимости от курса, относительно ветра, скорости яхты, дрейфа, крена. "]
[8,"Составляющие гидродинамической силы: сила сопротивления движению яхты и сила, противодействующая дрейфу. "]
[9,"Сопротивление трения, формы, волновое сопротивление, добавочное сопротивление. Глиссирование."]
[10,"Влияние формы руля, шверта, киля."]
[11,"Гидродинамическое сопротивление. Влияние крена на сопротивление корпуса."]
[12,"Лавировка. "]
[13,"Угол атаки для установки грота в зависимости от силы ветра. Выбор оптимального угла лавировки."]
[14,"Выбор парусов на сильный и слабый ветер. "]
[15,"Приёмы изменения формы, профиля и площади парусов."]
[16,"Скручивание паруса, оттяжка гика. "]
[17,"Места расположения кип для стаксель-шкотов, места крепления гика-шкотов."]
[18,"Взаимодействие грота и стакселя."]
[19,"Лавировка в слабый ветер. "]
[20,"Крен и продольный дифферент."]

{"sheet":"Метео","index":19,"n_rows":29,"n_cols":2,"rows_kept":29,"cut":false,"hidden":false,"merged":[]}
[1,"Метеорологические элементы:   облачность, осадки, видимость, ветер."]
[null,"Метеорологические элементы: атмосфера, температура, давление атмосферы, влажность воздуха,"]
[2,"Ветер. Причины его образования. Направление. Единицы скорости."]
[3,"Шкала Бофорта. "]
[4,"Предсказания погоды по местным признакам"]
[5,"Роза ветров, обозначение."]
[6,"Признаки облаков вехнего яруса"]
[7,"Признаки облаков среднего яруса"]
[8,"Признаки облаков нижнего яруса"]
[9,"Местные признаки устойчивой хорошей погоды. "]
[10,"Местные признаки ухудшения погоды. "]
[11,"Местные признаки сохранения пасмурной погоды. "]
[12,"Местные признаки - ненастная погода окончится"]
[13,"Местные признаки - Возможны гроза и ветер"]
[14,"Как измеряется скорость ветра?  Какие единицы измерения скорости ветра вы знаете?"]
[15,"Как определить шквал по внешним признакам?"]
[16,"Что такое утренний БРИЗ?"]
[17,"Что такое вечерний БРИЗ? "]
[18,"Как определить по местным условиям направление ВЕТРА?"]
[19,"Как определить приближение   резкого усиления ветра?"]
[20,"Признаки облаков вехнего яруса"]
[null,"Признаки облаков среднего яруса"]
[null,"Признаки облаков нижнего яруса"]
[null,"Местные признаки устойчивой хорошей погоды. "]
[null,"Местные признаки ухудшения погоды. "]
[null,"Местные признаки сохранения пасмурной погоды. "]
[null,"Местные признаки - ненастная погода окончится"]
[null,"Местные признаки - Возможны гроза и ветер"]
[null,"Как измеряется скорость ветра?  Какие единицы измерения скорости ветра вы знаете?"]

{"sheet":"Сигналы","index":20,"n_rows":39,"n_cols":3,"rows_kept":39,"cut":false,"hidden":false,"merged":[]}
[1,"AP","Прекращать. Гонка, которую прекращает гоночный или протестовый комитет, считается недействительной, но она может быть повторена."]
[2,"AP над H","Чисто позади и чисто впереди; связаны. Яхта находится чисто позади другой яхты, когда её корпус и оборудование в нормальном положении находятся позади траверза самой задней точки корпуса или оборудования другой яхты (в нормальном положении). Другая яхта находится чисто впереди. Яхты связаны, если ни одна из них не находится чисто позади другой. Они, однако, так же связаны, если яхта, находящаяся между ними, связана с обеими. Эти термины всегда применимы к яхтам, находящимся на одном галсе. Они не применяются к яхтам, находящимся на противоположных галсах, за исключением случаев, когда применяется правило 18  или когда обе яхты идут под углом более 90° к направлению истинного ветра."]
[3,"AP над A","Выходить на знак. Яхта выходит на знак, если она находится в такой позиции, что может, не изменяя галса, пройти знак с наветренной стороны и оставить его с предписанной стороны."]
[4,"N","Финиш. Яхта финиширует, когда любая часть её корпуса, экипажа или оборудования в их нормальном положении  пересекает финишную линию в направлении от последнего знака или впервые, или после выполнения наказания согласно правилу 44.2, либо после исправления по правилу 28.1 ошибки, сделанной у финишной линии."]
[5,"N над Н","Заинтересованная сторона. Любое лицо, которое может выиграть либо потерять вследствие решения протестового комитета или явно лично заинтересованное в таком решении."]
[6,"N над A","Сторониться. Яхта сторонится  другой яхты, если та может идти своим курсом без необходимости предпринимать избегающие действия, и когда яхты связаны на одном галсе, если подветренная яхта может изменить курс в любом направлении без немедленного касания наветренной яхты."]
[7,"P","Подветренная и наветренная. Подветренная сторона яхты - это сторона, противоположная той, на которую дует ветер, или которая была противоположной до того, как яхта оказалась в положении носом против ветра. Однако, если яхта идет по ветру, и ветер дует со стороны, на которой она несёт свой грот, или чисто в корму, то подветренной стороной считается сторона, на которой находится грот. Другая сторона яхты - наветренная. Когда две яхты находятся на одном и том же галсе и связаны, то подветренной считают ту яхту, которая находится на подветренной стороне другой яхты. Другая яхта является наветренной."]
[8,"I","Знак. Объект, который гоночная инструкция требует оставлять с предписанной стороны от яхты, и судно гоночного комитета, окруженное свободной водой и от которого проходит стартовая или финишная линия. Якорный канат и любые предметы, случайно или временно присоединенные к знаку, не считаются его частью."]
[9,"Z","Место у знака. Место, нужное яхте, чтобы идти к знаку, и затем место, нужное ей, чтобы идти надлежащим курсом у знака. Однако место у знака не включает место для поворота оверштаг; исключением является ситуация, когда яхта внутренняя и связана с наветренной стороны с яхтой, обязанной предоставить место у знака.   "]
[10,"U","Препятствие. Объект, который яхта, находясь от него на расстоянии длины своего корпуса и идя прямо на него, не могла бы обойти без существенного изменения курса. Препятствием является также, который можно безопасно пройти только с одной стороны. Гоночная инструкция может предписать, что определенные зоны акватории должны рассматриваться как препятствия. Однако яхта, находящаяся в гонке, не является препятствием для других яхт, если они не должны сторониться её или предоставлять место или место у знака, или избегать ее, согласно правилу 22. Судно на ходу, включая яхту, находящуюся в гонке, никогда не является препятствием большой протяжённости."]
[11,"Черный флаг","Сторона. Стороны, участвующие в рассмотрении: протестующая; опротестованная; яхта, требующая исправления результата; яхта или спортсмен, которые могут быть наказаны по правилу 69.1; гоночный комитет или проводящая организация при рассмотрении по правилу 62.1(а)."]
[12,"Черный флаг","Откладывать. Отложенной называют гонку, старт которой не будет дан в назначенное время, но которая может быть проведена или прекращена позже."]
[13,"Первый заменяющий","Надлежащий курс. Курс, которым яхта могла бы идти  к финишу как можно быстрее в отсутствии других яхт, о которых идёт речь в правилах, использующих этот термин. Яхта не имеет надлежащего курса до сигнала «Старт открыт» для неё."]
[14,"S","Протест. Заявление яхты, гоночного комитета или протестового комитета по правилу 61.2 о том, что какая-то яхта нарушила правила."]
[15,"C","Гонка. Яхта находится в гонке с момента сигнала «Подготовительный» для неё и до тех пор, когда она финишировала и отошла от финишной линии и финишных знаков или вышла из гонки, или когда гонка была отложена или прекращена, или был дан сигнал общего отзыва."]
[16,"Зеленый флаг","Место. Пространство, необходимое яхте для маневрирования без задержки в соответствии с хорошей морской практикой в существующих условиях."]
[17,"Красный флаг","720 и 360 град"]
[18,"L","Старт. Яхта стартует, когда она, будучи полностью на предстартовой стороне стартовой линии в момент или после сигнала \"Старт открыт\" для неё и выполнив, если нужно, требования правила 30.1, пересекает стартовую линию любой частью своего корпуса, экипажа или оборудования в направлении первого знака."]
[19,"M","Галс, правый галс или левый галс. Яхта находится на галсе, правом или левом, в соответствии с тем, какая сторона у нее наветренная."]
[20,"Y","Зона. Пространство вокруг знака в пределах трёх длин корпуса яхты, ближайшей к нему. Яхта находится в зоне, если любая часть её корпуса находится в зоне."]
[null,"Синий флаг"]
[]
[]
[]
[]
[]
[]
[]
[]
[null,1]
[null,2]
[null,3]
[null,4]
[null,5]
[null,6]
[null,7]
[]
[null," -"]
[null," +"]

{"sheet":"Цифры","index":21,"n_rows":39,"n_cols":3,"rows_kept":39,"cut":false,"hidden":false,"merged":[]}
[1,1,"Прекращать. Гонка, которую прекращает гоночный или протестовый комитет, считается недействительной, но она может быть повторена."]
[2,2,"Чисто позади и чисто впереди; связаны. Яхта находится чисто позади другой яхты, когда её корпус и оборудование в нормальном положении находятся позади траверза самой задней точки корпуса или оборудования другой яхты (в нормальном положении). Другая яхта находится чисто впереди. Яхты связаны, если ни одна из них не находится чисто позади другой. Они, однако, так же связаны, если яхта, находящаяся между ними, связана с обеими. Эти термины всегда применимы к яхтам, находящимся на одном галсе. Они не применяются к яхтам, находящимся на противоположных галсах, за исключением случаев, когда применяется правило 18  или когда обе яхты идут под углом более 90° к направлению истинного ветра."]
[3,3,"Выходить на знак. Яхта выходит на знак, если она находится в такой позиции, что может, не изменяя галса, пройти знак с наветренной стороны и оставить его с предписанной стороны."]
[4,4,"Финиш. Яхта финиширует, когда любая часть её корпуса, экипажа или оборудования в их нормальном положении  пересекает финишную линию в направлении от последнего знака или впервые, или после выполнения наказания согласно правилу 44.2, либо после исправления по правилу 28.1 ошибки, сделанной у финишной линии."]
[5,5,"Заинтересованная сторона. Любое лицо, которое может выиграть либо потерять вследствие решения протестового комитета или явно лично заинтересованное в таком решении."]
[6,6,"Сторониться. Яхта сторонится  другой яхты, если та может идти своим курсом без необходимости предпринимать избегающие действия, и когда яхты связаны на одном галсе, если подветренная яхта может изменить курс в любом направлении без немедленного касания наветренной яхты."]
[7,1,"Подветренная и наветренная. Подветренная сторона яхты - это сторона, противоположная той, на которую дует ветер, или которая была противоположной до того, как яхта оказалась в положении носом против ветра. Однако, если яхта идет по ветру, и ветер дует со стороны, на которой она несёт свой грот, или чисто в корму, то подветренной стороной считается сторона, на которой находится грот. Другая сторона яхты - наветренная. Когда две яхты находятся на одном и том же галсе и связаны, то подветренной считают ту яхту, которая находится на подветренной стороне другой яхты. Другая яхта является наветренной."]
[8,2,"Знак. Объект, который гоночная инструкция требует оставлять с предписанной стороны от яхты, и судно гоночного комитета, окруженное свободной водой и от которого проходит стартовая или финишная линия. Якорный канат и любые предметы, случайно или временно присоединенные к знаку, не считаются его частью."]
[9,3,"Место у знака. Место, нужное яхте, чтобы идти к знаку, и затем место, нужное ей, чтобы идти надлежащим курсом у знака. Однако место у знака не включает место для поворота оверштаг; исключением является ситуация, когда яхта внутренняя и связана с наветренной стороны с яхтой, обязанной предоставить место у знака.   "]
[10,4,"Препятствие. Объект, который яхта, находясь от него на расстоянии длины своего корпуса и идя прямо на него, не могла бы обойти без существенного изменения курса. Препятствием является также, который можно безопасно пройти только с одной стороны. Гоночная инструкция может предписать, что определенные зоны акватории должны рассматриваться как препятствия. Однако яхта, находящаяся в гонке, не является препятствием для других яхт, если они не должны сторониться её или предоставлять место или место у знака, или избегать ее, согласно правилу 22. Судно на ходу, включая яхту, находящуюся в гонке, никогда не является препятствием большой протяжённости."]
[11,5,"Сторона. Стороны, участвующие в рассмотрении: протестующая; опротестованная; яхта, требующая исправления результата; яхта или спортсмен, которые могут быть наказаны по правилу 69.1; гоночный комитет или проводящая организация при рассмотрении по правилу 62.1(а)."]
[12,6,"Откладывать. Отложенной называют гонку, старт которой не будет дан в назначенное время, но которая может быть проведена или прекращена позже."]
[13,1,"Надлежащий курс. Курс, которым яхта могла бы идти  к финишу как можно быстрее в отсутствии других яхт, о которых идёт речь в правилах, использующих этот термин. Яхта не имеет надлежащего курса до сигнала «Старт открыт» для неё."]
[14,2,"Протест. Заявление яхты, гоночного комитета или протестового комитета по правилу 61.2 о том, что какая-то яхта нарушила правила."]
[15,3,"Гонка. Яхта находится в гонке с момента сигнала «Подготовительный» для неё и до тех пор, когда она финишировала и отошла от финишной линии и финишных знаков или вышла из гонки, или когда гонка была отложена или прекращена, или был дан сигнал общего отзыва."]
[16,4,"Место. Пространство, необходимое яхте для маневрирования без задержки в соответствии с хорошей морской практикой в существующих условиях."]
[17,5,"720 и 360 град"]
[18,6,"Старт. Яхта стартует, когда она, будучи полностью на предстартовой стороне стартовой линии в момент или после сигнала \"Старт открыт\" для неё и выполнив, если нужно, требования правила 30.1, пересекает стартовую линию любой частью своего корпуса, экипажа или оборудования в направлении первого знака."]
[19,1,"Галс, правый галс или левый галс. Яхта находится на галсе, правом или левом, в соответствии с тем, какая сторона у нее наветренная."]
[20,2,"Зона. Пространство вокруг знака в пределах трёх длин корпуса яхты, ближайшей к нему. Яхта находится в зоне, если любая часть её корпуса находится в зоне."]
[null,3]
[null,4]
[null,5]
[null,6]
[]
[]
[]
[]
[]
[]
[]
[]
[]
[]
[]
[null,7]
[]
[null," -"]
[null," +"]

{"sheet":"Правила","index":22,"n_rows":62,"n_cols":9,"rows_kept":62,"cut":false,"hidden":false,"merged":[]}
[1,"Прекращать. ","Прекращать. Гонка, которую прекращает гоночный или протестовый комитет, считается недействительной, но она может быть повторена.",1,"Дать опредление термину \"Гонка\" "]
[2,"Чисто позади и чисто впереди; связаны.","Чисто позади и чисто впереди; связаны. Яхта находится чисто позади другой яхты, когда её корпус и оборудование в нормальном положении находятся позади траверза самой задней точки корпуса или оборудования другой яхты (в нормальном положении). Другая яхта находится чисто впереди. Яхты связаны, если ни одна из них не находится чисто позади другой. Они, однако, так же связаны, если яхта, находящаяся между ними, связана с обеими. Эти термины всегда применимы к яхтам, находящимся на одном галсе. Они не применяются к яхтам, находящимся на противоположных галсах, за исключением случаев, когда применяется правило 18  или когда обе яхты идут под углом более 90° к направлению истинного ветра.",2,"Какая из яхт имеет право дороги ? (подветренный-наветренный)"]
[3,"Выходить на знак. ","Выходить на знак. Яхта выходит на знак, если она находится в такой позиции, что может, не изменяя галса, пройти знак с наветренной стороны и оставить его с предписанной стороны.",3,"Что такое знак?"]
[4,"Финиш. ","Финиш. Яхта финиширует, когда любая часть её корпуса, экипажа или оборудования в их нормальном положении  пересекает финишную линию в направлении от последнего знака или впервые, или после выполнения наказания согласно правилу 44.2, либо после исправления по правилу 28.1 ошибки, сделанной у финишной линии.",4,"Какая из яхт имеет право дороги ? правый-левый галс -галфвинд"]
[5,"Заинтересованная сторона. ","Заинтересованная сторона. Любое лицо, которое может выиграть либо потерять вследствие решения протестового комитета или явно лично заинтересованное в таком решении.",5,"С какого момента яхта считается стартовавшей?"]
[6,"Сторониться. ","Сторониться. Яхта сторонится  другой яхты, если та может идти своим курсом без необходимости предпринимать избегающие действия, и когда яхты связаны на одном галсе, если подветренная яхта может изменить курс в любом направлении без немедленного касания наветренной яхты.",6,"Кто нарушил правила? чисто впереди -чисто позади ",null,null,null,"чисто впереди -чисто позади "]
[7,"Подветренная и наветренная. ","Подветренная и наветренная. Подветренная сторона яхты - это сторона, противоположная той, на которую дует ветер, или которая была противоположной до того, как яхта оказалась в положении носом против ветра. Однако, если яхта идет по ветру, и ветер дует со стороны, на которой она несёт свой грот, или чисто в корму, то подветренной стороной считается сторона, на которой находится грот. Другая сторона яхты - наветренная. Когда две яхты находятся на одном и том же галсе и связаны, то подветренной считают ту яхту, которая находится на подветренной стороне другой яхты. Другая яхта является наветренной.",7,"Какая яхта считается финишировавшей?"]
[8,"Знак. ","Знак. Объект, который гоночная инструкция требует оставлять с предписанной стороны от яхты, и судно гоночного комитета, окруженное свободной водой и от которого проходит стартовая или финишная линия. Якорный канат и любые предметы, случайно или временно присоединенные к знаку, не считаются его частью.",8,"С кем связана яхта б ?   связанность ",null,null,null,"связанность "]
[9,"Место у знака. ","Место у знака. Место, нужное яхте, чтобы идти к знаку, и затем место, нужное ей, чтобы идти надлежащим курсом у знака. Однако место у знака не включает место для поворота оверштаг; исключением является ситуация, когда яхта внутренняя и связана с наветренной стороны с яхтой, обязанной предоставить место у знака.   ",9,"Что может являться знаком?"]
[10,"Препятствие. ","Препятствие. Объект, который яхта, находясь от него на расстоянии длины своего корпуса и идя прямо на него, не могла бы обойти без существенного изменения курса. Препятствием является также, который можно безопасно пройти только с одной стороны. Гоночная инструкция может предписать, что определенные зоны акватории должны рассматриваться как препятствия. Однако яхта, находящаяся в гонке, не является препятствием для других яхт, если они не должны сторониться её или предоставлять место или место у знака, или избегать ее, согласно правилу 22. Судно на ходу, включая яхту, находящуюся в гонке, никогда не является препятствием большой протяжённости.",10,"Является ли перевернутая яхта препятствием?"]
[11,"Сторона. ","Сторона. Стороны, участвующие в рассмотрении: протестующая; опротестованная; яхта, требующая исправления результата; яхта или спортсмен, которые могут быть наказаны по правилу 69.1; гоночный комитет или проводящая организация при рассмотрении по правилу 62.1(а).",11,"Что такое гонка?"]
[12,"Откладывать. ","Откладывать. Отложенной называют гонку, старт которой не будет дан в назначенное время, но которая может быть проведена или прекращена позже.",12,"Кто имеет преимущество при огибании?"]
[13,"Надлежащий курс. ","Надлежащий курс. Курс, которым яхта могла бы идти  к финишу как можно быстрее в отсутствии других яхт, о которых идёт речь в правилах, использующих этот термин. Яхта не имеет надлежащего курса до сигнала «Старт открыт» для неё.",13,"Если яхта зацепилась за подводный якорный конец судейского судна , является ли это навалом ? "]
[14,"Протест. ","Протест. Заявление яхты, гоночного комитета или протестового комитета по правилу 61.2 о том, что какая-то яхта нарушила правила.",14,"Кто имеет право дороги ? правый-левый галс, зона знака",null,null,null,"правый-левый галс, зона знака"]
[15,"Гонка. ","Гонка. Яхта находится в гонке с момента сигнала «Подготовительный» для неё и до тех пор, когда она финишировала и отошла от финишной линии и финишных знаков или вышла из гонки, или когда гонка была отложена или прекращена, или был дан сигнал общего отзыва.",15,"Дистанция и ее виды "]
[16,"Место. ","Место. Пространство, необходимое яхте для маневрирования без задержки в соответствии с хорошей морской практикой в существующих условиях.",16,"Кто имеет право дороги ? ",null,null,null,"Связанность , место у знака"]
[17,"Выполнение наказания","720 и 360 град",17,"Что такое контрольное время гонки?"]
[18,"Старт. ","Старт. Яхта стартует, когда она, будучи полностью на предстартовой стороне стартовой линии в момент или после сигнала \"Старт открыт\" для неё и выполнив, если нужно, требования правила 30.1, пересекает стартовую линию любой частью своего корпуса, экипажа или оборудования в направлении первого знака.",18,"При нанрушении правила 42 (средства движения) и замечании членов протестового комитета на воде (ампаеров) , сколько штрафных оборотов надо сделать?"]
[19,"Галс, правый галс или левый галс. ","Галс, правый галс или левый галс. Яхта находится на галсе, правом или левом, в соответствии с тем, какая сторона у нее наветренная.",19,"В каких случаях старт может быть отложен?"]
[20,"Зона. ","Зона. Пространство вокруг знака в пределах трёх длин корпуса яхты, ближайшей к нему. Яхта находится в зоне, если любая часть её корпуса находится в зоне.",20,"Яхты А и С связаны ? "]
[21,"Прекращать. ","Прекращать. Гонка, которую прекращает гоночный или протестовый комитет, считается недействительной, но она может быть повторена.",21,"В каких случаях старт гонка может быть прекращена?"]
[22,"Чисто позади и чисто впереди; связаны.","Чисто позади и чисто впереди; связаны. Яхта находится чисто позади другой яхты, когда её корпус и оборудование в нормальном положении находятся позади траверза самой задней точки корпуса или оборудования другой яхты (в нормальном положении). Другая яхта находится чисто впереди. Яхты связаны, если ни одна из них не находится чисто позади другой. Они, однако, так же связаны, если яхта, находящаяся между ними, связана с обеими. Эти термины всегда применимы к яхтам, находящимся на одном галсе. Они не применяются к яхтам, находящимся на противоположных галсах, за исключением случаев, когда применяется правило 18  или когда обе яхты идут под углом более 90° к направлению истинного ветра.",22,"Кто имеет право дороги? правый-левый",null,null,null,"правый-левый"]
[23,"Выходить на знак. ","Выходить на знак. Яхта выходит на знак, если она находится в такой позиции, что может, не изменяя галса, пройти знак с наветренной стороны и оставить его с предписанной стороны.",23,"Какое судно называется судейским?"]
[24,"Финиш. ","Финиш. Яхта финиширует, когда любая часть её корпуса, экипажа или оборудования в их нормальном положении  пересекает финишную линию в направлении от последнего знака или впервые, или после выполнения наказания согласно правилу 44.2, либо после исправления по правилу 28.1 ошибки, сделанной у финишной линии.",24,"Кто имеет право дороги и почему?"]
[25,"Заинтересованная сторона. ","Заинтересованная сторона. Любое лицо, которое может выиграть либо потерять вследствие решения протестового комитета или явно лично заинтересованное в таком решении.",25,"Описать стартовую процедуру."]
[26,"Сторониться. ","Сторониться. Яхта сторонится  другой яхты, если та может идти своим курсом без необходимости предпринимать избегающие действия, и когда яхты связаны на одном галсе, если подветренная яхта может изменить курс в любом направлении без немедленного касания наветренной яхты.",26,"Кто имеет право дороги ? правый-левый , полный курс",null,null,null,"правый-левый , полный курс"]
[27,"Подветренная и наветренная. ","Подветренная и наветренная. Подветренная сторона яхты - это сторона, противоположная той, на которую дует ветер, или которая была противоположной до того, как яхта оказалась в положении носом против ветра. Однако, если яхта идет по ветру, и ветер дует со стороны, на которой она несёт свой грот, или чисто в корму, то подветренной стороной считается сторона, на которой находится грот. Другая сторона яхты - наветренная. Когда две яхты находятся на одном и том же галсе и связаны, то подветренной считают ту яхту, которая находится на подветренной стороне другой яхты. Другая яхта является наветренной.",27,"Разрешено ли спортсмену снимать спасательный жилет между гонками ?"]
[28,"Знак. ","Знак. Объект, который гоночная инструкция требует оставлять с предписанной стороны от яхты, и судно гоночного комитета, окруженное свободной водой и от которого проходит стартовая или финишная линия. Якорный канат и любые предметы, случайно или временно присоединенные к знаку, не считаются его частью.",28,"Яхта В обязана уступить дорогу ?  на одном галсе , чисто впереди-чисто позади",null,null,null,"на одном галсе , чисто впереди-чисто позади"]
[29,"Место у знака. ","Место у знака. Место, нужное яхте, чтобы идти к знаку, и затем место, нужное ей, чтобы идти надлежащим курсом у знака. Однако место у знака не включает место для поворота оверштаг; исключением является ситуация, когда яхта внутренняя и связана с наветренной стороны с яхтой, обязанной предоставить место у знака.   ",29,"По какой яхте определяется зона 3х длин ?"]
[30,"Препятствие. ","Препятствие. Объект, который яхта, находясь от него на расстоянии длины своего корпуса и идя прямо на него, не могла бы обойти без существенного изменения курса. Препятствием является также, который можно безопасно пройти только с одной стороны. Гоночная инструкция может предписать, что определенные зоны акватории должны рассматриваться как препятствия. Однако яхта, находящаяся в гонке, не является препятствием для других яхт, если они не должны сторониться её или предоставлять место или место у знака, или избегать ее, согласно правилу 22. Судно на ходу, включая яхту, находящуюся в гонке, никогда не является препятствием большой протяжённости.",30,"Разрешено ли оспаривать решения ампаеров? "]
[31,"Сторона. ","Сторона. Стороны, участвующие в рассмотрении: протестующая; опротестованная; яхта, требующая исправления результата; яхта или спортсмен, которые могут быть наказаны по правилу 69.1; гоночный комитет или проводящая организация при рассмотрении по правилу 62.1(а).",31,"Дать опредление термину \"Гонка\" "]
[32,"Откладывать. ","Откладывать. Отложенной называют гонку, старт которой не будет дан в назначенное время, но которая может быть проведена или прекращена позже.",32,"Дать опредление термину \"Гонка\" "]
[33,"Надлежащий курс. ","Надлежащий курс. Курс, которым яхта могла бы идти  к финишу как можно быстрее в отсутствии других яхт, о которых идёт речь в правилах, использующих этот термин. Яхта не имеет надлежащего курса до сигнала «Старт открыт» для неё.",33,"Какая из яхт имеет право дороги ? (подветренный-наветренный)"]
[34,"Протест. ","Протест. Заявление яхты, гоночного комитета или протестового комитета по правилу 61.2 о том, что какая-то яхта нарушила правила.",34,"Что такое знак?"]
[35,"Гонка. ","Гонка. Яхта находится в гонке с момента сигнала «Подготовительный» для неё и до тех пор, когда она финишировала и отошла от финишной линии и финишных знаков или вышла из гонки, или когда гонка была отложена или прекращена, или был дан сигнал общего отзыва.",35,"Какая из яхт имеет право дороги ? правый-левый галс -галфвинд"]
[36,"Место. ","Место. Пространство, необходимое яхте для маневрирования без задержки в соответствии с хорошей морской практикой в существующих условиях.",36,"С какого момента яхта считается стартовавшей?"]
[37,"Выполнение наказания","720 и 360 град",37,"Кто нарушил правила? чисто впереди -чисто позади "]
[38,"Старт. ","Старт. Яхта стартует, когда она, будучи полностью на предстартовой стороне стартовой линии в момент или после сигнала \"Старт открыт\" для неё и выполнив, если нужно, требования правила 30.1, пересекает стартовую линию любой частью своего корпуса, экипажа или оборудования в направлении первого знака.",38,"Какая яхта считается финишировавшей?"]
[39,"Галс, правый галс или левый галс. ","Галс, правый галс или левый галс. Яхта находится на галсе, правом или левом, в соответствии с тем, какая сторона у нее наветренная.",39,"С кем связана яхта б ?   связанность "]
[40,"Зона. ","Зона. Пространство вокруг знака в пределах трёх длин корпуса яхты, ближайшей к нему. Яхта находится в зоне, если любая часть её корпуса находится в зоне.",40,"Что может являться знаком?"]
[null,null,null,41,"Является ли перевернутая яхта препятствием?"]
[null,null,null,42,"Что такое гонка?"]
[null,null,null,43,"Кто имеет преимущество при огибании?"]
[null,null,null,44,"Если яхта зацепилась за подводный якорный конец судейского судна , является ли это навалом ? "]
[null,null,null,45,"Кто имеет право дороги ? правый-левый галс, зона знака"]
[null,null,null,46,"Дистанция и ее виды "]
[null,null,null,47,"Кто имеет право дороги ? "]
[null,null,null,48,"Что такое контрольное время гонки?"]
[null,null,null,49,"При нанрушении правила 42 (средства движения) и замечании членов протестового комитета на воде (ампаеров) , сколько штрафных оборотов надо сделать?"]
[null,null,null,50,"В каких случаях старт может быть отложен?"]
[null,null,null,51,"Яхты А и С связаны ? "]
[null,null,null,52,"В каких случаях старт гонка может быть прекращена?"]
[null,null,null,53,"Кто имеет право дороги? правый-левый"]
[null,null,null,54,"Какое судно называется судейским?"]
[null,null,null,55,"Кто имеет право дороги и почему?"]
[null,null,null,56,"Описать стартовую процедуру."]
[null,null,null,57,"Кто имеет право дороги ? правый-левый , полный курс"]
[null,null,null,58,"Разрешено ли спортсмену снимать спасательный жилет между гонками ?"]
[null,null,null,59,"Яхта В обязана уступить дорогу ?  на одном галсе , чисто впереди-чисто позади"]
[null,null,null,60,"По какой яхте определяется зона 3х длин ?"]
[null,null,null,null,"Разрешено ли оспаривать решения ампаеров? "]
[null,null,null,null,"Дать опредление термину \"Гонка\" "]

{"sheet":"Право","index":23,"n_rows":40,"n_cols":3,"rows_kept":40,"cut":false,"hidden":false,"merged":[]}
[1,"Право дороги Правило 10  НА ПРОТИВОПОЛОЖНЫХ ГАЛСАХ ","Прекращать. Гонка, которую прекращает гоночный или протестовый комитет, считается недействительной, но она может быть повторена."]
[2,"Право дороги Правило 11  НА ОДНОМ ГАЛСЕ. СВЯЗАННЫ","Чисто позади и чисто впереди; связаны. Яхта находится чисто позади другой яхты, когда её корпус и оборудование в нормальном положении находятся позади траверза самой задней точки корпуса или оборудования другой яхты (в нормальном положении). Другая яхта находится чисто впереди. Яхты связаны, если ни одна из них не находится чисто позади другой. Они, однако, так же связаны, если яхта, находящаяся между ними, связана с обеими. Эти термины всегда применимы к яхтам, находящимся на одном галсе. Они не применяются к яхтам, находящимся на противоположных галсах, за исключением случаев, когда применяется правило 18  или когда обе яхты идут под углом более 90° к направлению истинного ветра."]
[3,"Право дороги Правило 12  НА ОДНОМ ГАЛСЕ.  НЕ СВЯЗАННЫ","Выходить на знак. Яхта выходит на знак, если она находится в такой позиции, что может, не изменяя галса, пройти знак с наветренной стороны и оставить его с предписанной стороны."]
[4,"Право дороги Правило 14  ВО ВРЕМЯ ПОВОРОТА ОВЕРШТАГ","Финиш. Яхта финиширует, когда любая часть её корпуса, экипажа или оборудования в их нормальном положении  пересекает финишную линию в направлении от последнего знака или впервые, или после выполнения наказания согласно правилу 44.2, либо после исправления по правилу 28.1 ошибки, сделанной у финишной линии."]
[5,"Общие ограничения. Правило 14 Избегания Контакта","Заинтересованная сторона. Любое лицо, которое может выиграть либо потерять вследствие решения протестового комитета или явно лично заинтересованное в таком решении."]
[6,"Общие ограничения. Правило 15 Получение Права дороги","Сторониться. Яхта сторонится  другой яхты, если та может идти своим курсом без необходимости предпринимать избегающие действия, и когда яхты связаны на одном галсе, если подветренная яхта может изменить курс в любом направлении без немедленного касания наветренной яхты."]
[7,"Общие ограничения. Правило 16 Изменения Курса","Подветренная и наветренная. Подветренная сторона яхты - это сторона, противоположная той, на которую дует ветер, или которая была противоположной до того, как яхта оказалась в положении носом против ветра. Однако, если яхта идет по ветру, и ветер дует со стороны, на которой она несёт свой грот, или чисто в корму, то подветренной стороной считается сторона, на которой находится грот. Другая сторона яхты - наветренная. Когда две яхты находятся на одном и том же галсе и связаны, то подветренной считают ту яхту, которая находится на подветренной стороне другой яхты. Другая яхта является наветренной."]
[8,"Общие ограничения. Правило 17 На одном галсе. Надлежащий курс","Знак. Объект, который гоночная инструкция требует оставлять с предписанной стороны от яхты, и судно гоночного комитета, окруженное свободной водой и от которого проходит стартовая или финишная линия. Якорный канат и любые предметы, случайно или временно присоединенные к знаку, не считаются его частью."]
[9,"Право дороги Правило 10  НА ПРОТИВОПОЛОЖНЫХ ГАЛСАХ ","Место у знака. Место, нужное яхте, чтобы идти к знаку, и затем место, нужное ей, чтобы идти надлежащим курсом у знака. Однако место у знака не включает место для поворота оверштаг; исключением является ситуация, когда яхта внутренняя и связана с наветренной стороны с яхтой, обязанной предоставить место у знака.   "]
[10,"Право дороги Правило 11  НА ОДНОМ ГАЛСЕ. СВЯЗАННЫ","Препятствие. Объект, который яхта, находясь от него на расстоянии длины своего корпуса и идя прямо на него, не могла бы обойти без существенного изменения курса. Препятствием является также, который можно безопасно пройти только с одной стороны. Гоночная инструкция может предписать, что определенные зоны акватории должны рассматриваться как препятствия. Однако яхта, находящаяся в гонке, не является препятствием для других яхт, если они не должны сторониться её или предоставлять место или место у знака, или избегать ее, согласно правилу 22. Судно на ходу, включая яхту, находящуюся в гонке, никогда не является препятствием большой протяжённости."]
[11,"Право дороги Правило 12  НА ОДНОМ ГАЛСЕ.  НЕ СВЯЗАННЫ","Сторона. Стороны, участвующие в рассмотрении: протестующая; опротестованная; яхта, требующая исправления результата; яхта или спортсмен, которые могут быть наказаны по правилу 69.1; гоночный комитет или проводящая организация при рассмотрении по правилу 62.1(а)."]
[12,"Право дороги Правило 14  ВО ВРЕМЯ ПОВОРОТА ОВЕРШТАГ","Откладывать. Отложенной называют гонку, старт которой не будет дан в назначенное время, но которая может быть проведена или прекращена позже."]
[13,"Общие ограничения. Правило 14 Избегания Контакта","Надлежащий курс. Курс, которым яхта могла бы идти  к финишу как можно быстрее в отсутствии других яхт, о которых идёт речь в правилах, использующих этот термин. Яхта не имеет надлежащего курса до сигнала «Старт открыт» для неё."]
[14,"Общие ограничения. Правило 15 Получение Права дороги","Протест. Заявление яхты, гоночного комитета или протестового комитета по правилу 61.2 о том, что какая-то яхта нарушила правила."]
[15,"Общие ограничения. Правило 16 Изменения Курса","Гонка. Яхта находится в гонке с момента сигнала «Подготовительный» для неё и до тех пор, когда она финишировала и отошла от финишной линии и финишных знаков или вышла из гонки, или когда гонка была отложена или прекращена, или был дан сигнал общего отзыва."]
[16,"Общие ограничения. Правило 17 На одном галсе. Надлежащий курс","Место. Пространство, необходимое яхте для маневрирования без задержки в соответствии с хорошей морской практикой в существующих условиях."]
[17,"Право дороги Правило 10  НА ПРОТИВОПОЛОЖНЫХ ГАЛСАХ ","720 и 360 град"]
[18,"Право дороги Правило 11  НА ОДНОМ ГАЛСЕ. СВЯЗАННЫ","Старт. Яхта стартует, когда она, будучи полностью на предстартовой стороне стартовой линии в момент или после сигнала \"Старт открыт\" для неё и выполнив, если нужно, требования правила 30.1, пересекает стартовую линию любой частью своего корпуса, экипажа или оборудования в направлении первого знака."]
[19,"Право дороги Правило 12  НА ОДНОМ ГАЛСЕ.  НЕ СВЯЗАННЫ","Галс, правый галс или левый галс. Яхта находится на галсе, правом или левом, в соответствии с тем, какая сторона у нее наветренная."]
[20,"Право дороги Правило 14  ВО ВРЕМЯ ПОВОРОТА ОВЕРШТАГ","Зона. Пространство вокруг знака в пределах трёх длин корпуса яхты, ближайшей к нему. Яхта находится в зоне, если любая часть её корпуса находится в зоне."]
[21,"Общие ограничения. Правило 14 Избегания Контакта","Прекращать. Гонка, которую прекращает гоночный или протестовый комитет, считается недействительной, но она может быть повторена."]
[22,"Общие ограничения. Правило 15 Получение Права дороги","Чисто позади и чисто впереди; связаны. Яхта находится чисто позади другой яхты, когда её корпус и оборудование в нормальном положении находятся позади траверза самой задней точки корпуса или оборудования другой яхты (в нормальном положении). Другая яхта находится чисто впереди. Яхты связаны, если ни одна из них не находится чисто позади другой. Они, однако, так же связаны, если яхта, находящаяся между ними, связана с обеими. Эти термины всегда применимы к яхтам, находящимся на одном галсе. Они не применяются к яхтам, находящимся на противоположных галсах, за исключением случаев, когда применяется правило 18  или когда обе яхты идут под углом более 90° к направлению истинного ветра."]
[23,"Общие ограничения. Правило 16 Изменения Курса","Выходить на знак. Яхта выходит на знак, если она находится в такой позиции, что может, не изменяя галса, пройти знак с наветренной стороны и оставить его с предписанной стороны."]
[24,"Общие ограничения. Правило 17 На одном галсе. Надлежащий курс","Финиш. Яхта финиширует, когда любая часть её корпуса, экипажа или оборудования в их нормальном положении  пересекает финишную линию в направлении от последнего знака или впервые, или после выполнения наказания согласно правилу 44.2, либо после исправления по правилу 28.1 ошибки, сделанной у финишной линии."]
[25,null,"Заинтересованная сторона. Любое лицо, которое может выиграть либо потерять вследствие решения протестового комитета или явно лично заинтересованное в таком решении."]
[26,null,"Сторониться. Яхта сторонится  другой яхты, если та может идти своим курсом без необходимости предпринимать избегающие действия, и когда яхты связаны на одном галсе, если подветренная яхта может изменить курс в любом направлении без немедленного касания наветренной яхты."]
[27,null,"Подветренная и наветренная. Подветренная сторона яхты - это сторона, противоположная той, на которую дует ветер, или которая была противоположной до того, как яхта оказалась в положении носом против ветра. Однако, если яхта идет по ветру, и ветер дует со стороны, на которой она несёт свой грот, или чисто в корму, то подветренной стороной считается сторона, на которой находится грот. Другая сторона яхты - наветренная. Когда две яхты находятся на одном и том же галсе и связаны, то подветренной считают ту яхту, которая находится на подветренной стороне другой яхты. Другая яхта является наветренной."]
[28,null,"Знак. Объект, который гоночная инструкция требует оставлять с предписанной стороны от яхты, и судно гоночного комитета, окруженное свободной водой и от которого проходит стартовая или финишная линия. Якорный канат и любые предметы, случайно или временно присоединенные к знаку, не считаются его частью."]
[29,null,"Место у знака. Место, нужное яхте, чтобы идти к знаку, и затем место, нужное ей, чтобы идти надлежащим курсом у знака. Однако место у знака не включает место для поворота оверштаг; исключением является ситуация, когда яхта внутренняя и связана с наветренной стороны с яхтой, обязанной предоставить место у знака.   "]
[30,null,"Препятствие. Объект, который яхта, находясь от него на расстоянии длины своего корпуса и идя прямо на него, не могла бы обойти без существенного изменения курса. Препятствием является также, который можно безопасно пройти только с одной стороны. Гоночная инструкция может предписать, что определенные зоны акватории должны рассматриваться как препятствия. Однако яхта, находящаяся в гонке, не является препятствием для других яхт, если они не должны сторониться её или предоставлять место или место у знака, или избегать ее, согласно правилу 22. Судно на ходу, включая яхту, находящуюся в гонке, никогда не является препятствием большой протяжённости."]
[31,null,"Сторона. Стороны, участвующие в рассмотрении: протестующая; опротестованная; яхта, требующая исправления результата; яхта или спортсмен, которые могут быть наказаны по правилу 69.1; гоночный комитет или проводящая организация при рассмотрении по правилу 62.1(а)."]
[32,null,"Откладывать. Отложенной называют гонку, старт которой не будет дан в назначенное время, но которая может быть проведена или прекращена позже."]
[33,null,"Надлежащий курс. Курс, которым яхта могла бы идти  к финишу как можно быстрее в отсутствии других яхт, о которых идёт речь в правилах, использующих этот термин. Яхта не имеет надлежащего курса до сигнала «Старт открыт» для неё."]
[34,null,"Протест. Заявление яхты, гоночного комитета или протестового комитета по правилу 61.2 о том, что какая-то яхта нарушила правила."]
[35,null,"Гонка. Яхта находится в гонке с момента сигнала «Подготовительный» для неё и до тех пор, когда она финишировала и отошла от финишной линии и финишных знаков или вышла из гонки, или когда гонка была отложена или прекращена, или был дан сигнал общего отзыва."]
[36,null,"Место. Пространство, необходимое яхте для маневрирования без задержки в соответствии с хорошей морской практикой в существующих условиях."]
[37,null,"720 и 360 град"]
[38,null,"Старт. Яхта стартует, когда она, будучи полностью на предстартовой стороне стартовой линии в момент или после сигнала \"Старт открыт\" для неё и выполнив, если нужно, требования правила 30.1, пересекает стартовую линию любой частью своего корпуса, экипажа или оборудования в направлении первого знака."]
[39,null,"Галс, правый галс или левый галс. Яхта находится на галсе, правом или левом, в соответствии с тем, какая сторона у нее наветренная."]
[40,null,"Зона. Пространство вокруг знака в пределах трёх длин корпуса яхты, ближайшей к нему. Яхта находится в зоне, если любая часть её корпуса находится в зоне."]

{"sheet":"Практика","index":24,"n_rows":20,"n_cols":2,"rows_kept":20,"cut":false,"hidden":false,"merged":[]}
[1," Отход от причала при различных направлениях ветра. Выход из гавани."]
[2,"Подход к бочке при различных курсах."]
[3,"Поворот оверштаг, фордевинд."]
[4,"Задний ход, дрейф."]
[5,"Маневрирование в ситуации «Человек за бортом»."]
[6,"Действие капитана и экипажа при различных аварийных ситуациях: обрыв вант, штага, ахтерштага, бакштагов; поломки рангоута, рулевого устройства; разрыва парусов; пробоины в корпусе."]
[7,"Опрокидывание яхты. Восстановление яхты после оверкиля."]
[8,"Подготовка яхты к выходу на воду."]
[9," Отход от причала при различных направлениях ветра. Выход из гавани."]
[10,"Умение определять усиления ветра визуальными средствами."]
[11," Отход от причала при различных направлениях ветра. Выход из гавани."]
[12,"Подход к бочке при различных курсах."]
[13,"Поворот оверштаг, фордевинд."]
[14,"Как определить направление и скорость ТЕЧЕНИЯ?"]
[15,"Как необходимо преодолевать встречное ТЕЧЕНИЕ? "]
[16,"Что необходимо сделать при резком усилении ветра?"]
[17,"Опрокидывание яхты. Восстановление яхты после оверкиля."]
[18,"Подготовка яхты к выходу на воду."]
[19,"Участие в парусной регате для закрепления полученных навыков в качестве рулевого. "]
[20,"Умение определять усиления ветра визуальными средствами."]